Workbook

Sheet Cover Page
D1: Add company logo
N2: Version 20.1
B8: Add photo
N13: Notes:
N14: This template may require adjustments by individual operators to meet specific reporting requirements as defined in the site Permit(s)
B29: Annual Performance Report 2020
B31: Permit EPR/NP3638ZS
B33: Peterborough Energy Recovery Facility
B35: N/A
B37: Viridor Peterborough Ltd
B39: Year: | C39: 2020
B41: Address: | C41: Fourth Drove, Peterborough, PE1 5UR
B43: Tel: | C43: 01733 465284
B45: Email: | C45: kgoldacre@viridor.co.uk
B47: Prepared by: | C47: K Goldacre | F47: Position: | G47: EHS Manager
B49: Approved by: | C49: R Griffin | F49: Position: | G49: Head of Operations (North)
B51: Version: | C51: 1
B53: Issue Date: | C53: 2021-01-25

Sheet Contents
A1: =+'Cover Page'!$B$29 -> Annual Performance Report 2020 | E1: =+'Cover Page'!$B$33 -> Peterborough Energy Recovery Facility
A3: Contents | K3: Notes:
A4: Section | B4: Subject | H4: Page | K4: Section references and Page nos. to be inserted
B5: Facility Information | H5: 3 | K5: Sections and Subjects may require adjustment by individual operators to meet specific reporting requirements as defined in the sites Permit(s)
B6: Operational Summary | H6: 6
B7: Operational Data | H7: 4
B8: Performance Form 1 | H8: 7
B9: Energy Form 1 | H9: 8
B10: Permit Compliance | H10: 9
B11: Improvements | H11: 10
B12: Public Liasion | H12: 11
B13: Residue Quality - Optional | H13: 12
B14: Emissions to Water | H14: 13
B15: Emissions to Air (periodically monitored) | H15: 14
B16: Emissions to Air (continuously monitored) | H16: 16
B17: Hydrogen Chloride emissions | H17: 18
B18: Sulphur Dioxide emsissions | H18: 19
B19: Oxides of Notrigen emissions | H19: 20
B20: Total Organic Carbon emissions | H20: 21
B21: Particulate Matter emissions | H21: 22
B22: Carbon Monoxide emissions | H22: 23
B23: Ammonia emissions | H23: 24
A26: Version Control
A27: Section | B27: Information | H27: Date
A34: Distribution
A35: Copy | B35: Name, Role | H35: No.
A44: This report is required under the Industrial Emissions Directive’s Article 55(2) requirements on reporting and public information on waste incineration plants and co-incineration plants, which require the operator to produce an annual report on the functioning and monitoring of the plant and make it available to the public.

Sheet Facility Info
A1: =+'Cover Page'!$B$29 -> Annual Performance Report 2020 | E1: =+'Cover Page'!$B$33 -> Peterborough Energy Recovery Facility
A3: Plant Description and Design | K3: Notes:
A5: Peterborough Energy from Waste (EfW) facility is located on the eastern side of Peterborough and occupies an area of 4.5 hectares within the Fengate Industrial Estate, approximately 2.5km south-east of the city centre. The ERF enables the city of Peterborough and area to divert about 85,000 tonnes of residual waste from landfill each year. The facility is a single line plant which has a capacity for 85,000 tonnes incinerated per year and generates electricity (on average 8.5-8.8MWh) to be used internally and exported to the National Grid. The facility design and layout of the steam turbine allows for potential heat export to local users, a small district heating scheme was commissioned in March 2017 serving Dodson House (next door building owned by Peterborough City Council) although this is currently dormant. | K5: Include summary of plant design, design capacity, no. of combustion lines, electrical and heat capacity and any other general information that descibes the facility, its location and purpose
A20: Summary of Operational Processes and Procedures
A22: Incoming refuse collection vehicles and bulk transport vehicles enter the site and proceed to the incoming weighbridge. After weighing in, the vehicles continue to the enclosed reception hall where they will discharge their load into the waste storage bunker. Vehicle loads are inspected randomly in the Tipping Hall to confirm the nature of incoming waste. Once vehicles have deposited their waste they leave the site via a second weighbridge. Potential emissions of odour and dust from the tipping hall and refuse bunkers are controlled by forced draught fans located above the refuse bunkers. These draw air from the bunker hall and reception area into the furnace to feed the combustion process, creating a slight negative pressure. The waste combustion takes place on a Volund Dynagrate the heat generated being used to create superheated steam which is used to drive the steam turbine and generate electricity. Heat from turbine bleeds can be used for combined heat and power systems and is also used for pre-heating of combustion air and operation of the deaerator to maximise efficiency. Condensing of the steam takes place via air cooled condensing system and the condensate cycles back around in a closed system (other than necessary top up). Emission control is via injection of ammonia into the furnace for NOx control via SNCR technology. At the end of the boiler and gas path lime and activated carbon are added to remove acidic gases, dioxins, furans and heavy metals before this is all filtered by a bag filter system which removes the lime and carbon added and particulates from the combustion process producing APCr. Emissions are measured continuously in stack and by extractive stack measurements as required by the environmental permit. Residues from the process, IBA and APCr are both sent to specialist reprocessing sites. IBA has metals removed for recyling and is reprocessed into IBAA (Incinerator Bottom Ash Aggregate). The APCr is sent to OCO Technology (formally Carbon8) who use accelerated cabonation technology to produce a carbon negative aggregate material which encapsulates the absorbed substances from the APCr. Maintenance is controlled by a CMMS system and consists of planned preventative maintenance (ppm), derived from both experience of the plant and OEM requirements, and reactive maintenance. An annual shutdown period happens each summer during which maintenance and statutory inspections are carried out. The plant operates a document control system meeting the requirements of the Viridor document management system and ISO 9001, 14001, 45001 and 50001. | K22: Include summary of key processes and procedures such as (but not limited to); waste reception, control rooms, grate, bed and bolier, energy & heat generation, cooling systems, residue management, emission controls, health and safety systems, maintenance

Sheet Operational Data
A1: =+'Cover Page'!$B$29 -> Annual Performance Report 2020 | E1: =+'Cover Page'!$B$33 -> Peterborough Energy Recovery Facility
A3: Operational Data | K3: Notes:
A4: Plant Size | B4: 85000 | D4: tonnes pa | E4: 28 | F4: MWth | G4: 9 | H4: MWe | K4: * - RDF to include SRF
A5: No. of combustion lines | B5: 1 | D5: No. of Turbines: | F5: 1 | K5: ** - CHP plants only
K6: 2020 updates include; heat in MWh, water in Litres, NCV in MJ/kg
A7: Waste types received | B7: Unit | C7: Q1 | D7: Q2 | E7: Q3 | F7: Q4 | G7: Year Total | H7: %
A8: Household / Local Authority | B8: tonnes | C8: 12772.18 | D8: 13146.84 | E8: 13700.42 | F8: 13642.12 | G8: =SUM(C8:F8) -> 53261.56 | H8: =IF(G8>0,G8/$G$18,"-") -> 0.6195252686 | K8: Availabiity Definition: 'the availability of a line is to be calculated by the number of hours the line reported Continuously Monitored emission levels to the Regulator through the calendar year divided by the total number of hours in that year. The overall plant availability is calculated as the Mean of all lines in the plant. For clarity this includes periods of Other Than Normal Operating Conditions (OTNOC) and abnormal operation.' Rationale: The primary function of an Energy from Waste facility is the disposal of waste. It follows therefore that the availability of a plant is determined by the period of time a facility spends undertaking this activity.
A9: Commercial & Industrial | C9: 8679.85 | D9: 4273.49 | E9: 7510.22 | F9: 7587.89 | G9: =SUM(C9:F9) -> 28051.45 | H9: 0.3262875157
A10: Hazardous | C10: 0 | D10: 0 | E10: 0 | G10: 0 | H10: -
A11: Clinical | C11: 1165.98 | D11: 1269.34 | E11: 1145.28 | F11: 1077.96 | G11: 4658.56 | H11: 0.05418721561
A12: Waste wood (biomass) | G12: 0 | H12: -
A13: Refuse Derived Fuel * - H'hold/LA | G13: =SUM(C13:F13) -> 0 | H13: -
A14: Refuse Derived Fuel * - C&I | G14: 0 | H14: -
A15: Other [Please specify] | G15: 0 | H15: -
A16: Other [Please specify]
A17: Other [Please specify]
A18: Total waste received | C18: =SUM(C8:C17) -> 22618.01 | D18: =SUM(D8:D17) -> 18689.67 | E18: =SUM(E8:E17) -> 22355.92 | F18: =SUM(F8:F17) -> 22307.97 | G18: =SUM(G8:G17) -> 85971.57 | H18: =IF(G18>0,G18/$G$18,"-") -> 1
A19: Rejected Waste | G19: =SUM(C19:F19) -> 0 | H19: =IF(G19>0,G19/$G$18,"-") -> -
A20: Unprocessed waste transferred out | D20: 1295 | G20: =SUM(C20:F20) -> 1295 | H20: =IF(G20>0,G20/$G$18,"-") -> 0.01506311912 | K20: spends undertaking this activity.
A21: Total waste combusted | C21: 20999.1 | D21: 15320.1 | E21: 21639.7 | F21: 21976.9 | G21: =SUM(C21:F21) -> 79935.8 | H21: =IF(G21>0,G21/$G$18,"-") -> 0.9297934189
A22: NOTE: Total combusted line (as per template calculation) is TOTAL AVAILABLE FOR COMBUSTION
A23: Total waste combusted above is actual weights as recorded by the cranes and DCS from feeding the boiler
A24: (annually calibrated and zero checks each day).
A25: NOTE: Clinical line is 180104 Non-hazardous offensive waste
A27: Energy Useage / Export | B27: Unit | C27: Q1 | D27: Q2 | E27: Q3 | F27: Q4 | G27: Year Total | H27: KWh/te
A28: Power Generated | B28: MWh | C28: 16486.5 | D28: 9104.15 | E28: 17165.58 | F28: 16666.28 | G28: =SUM(C28:F28) -> 59422.51 | H28: =IF(G28>0,G28*1000/$G$21,"-") -> 743.3779358
A29: Power Exported | C29: 14946.5 | D29: 7997.67 | E29: 14923.03 | F29: 14524.29 | G29: =SUM(C29:F29) -> 52391.49 | H29: =IF(G29>0,G29*1000/$G$21,"-") -> 655.4195992
A30: Power Used on site | C30: =(C28-C29)+C31 -> 1592.075 | D30: =(D28-D29)+D31 -> 1599.86 | E30: 2242.55 | G30: =SUM(C30:F30) -> 5434.485 | H30: =IF(G30>0,G30*1000/$G$21,"-") -> 67.98562096
A31: Power Imported | C31: 52.075 | D31: 493.38 | E31: 0 | F31: 114.35 | G31: 659.805 | H31: 8.254186485
A32: Parasitic Load | B32: % | C32: =IF(C28>0,1-C29/(C28+C31),"-") -> 0.09626433958 | D32: =IF(D28>0,1-D29/(D28+D31),"-") -> 0.1666949726 | E32: =IF(E28>0,1-E29/(E28+E31),"-") -> 0.1306422504 | F32: =IF(F28>0,1-F29/(F28+F31),"-") -> 0.1344609827 | G32: =IF(G28>0,1-G29/(G28+G31),"-") -> 0.1280048047
A33: Thermal Energy Produced ** | B33: MWh | G33: =SUM(C33:F33) -> 0 | H33: -
A34: Thermal Energy Exported ** | G34: 0 | H34: -
A35: R1 value | C35: 0.85 | G35: Operational
A36: Power used on site = (Generated-Exported) + imported
A38: Waste Disposal & Recovery | B38: Unit | C38: Q1 | D38: Q2 | E38: Q3 | F38: Q4 | G38: Year Total | H38: % inputs
A39: APC Residues - produced | B39: tonnes | C39: 671 | D39: 494.04 | E39: 569.84 | F39: 489.48 | G39: =SUM(C39:F39) -> 2224.36 | H39: =IF(G39>0,G39/$G$21,"-") -> 0.02782683103
A40: IBA - produced | C40: 4345 | D40: 3662.32 | E40: 5037.43 | F40: 4663 | G40: 17707.75 | H40: =IF(G40>0,G40/$G$21,"-") -> 0.2215246485
A41: Metals recycling | C41: 0 | D41: 14.02 | E41: 6.18 | F41: 0 | G41: =SUM(C41:F41) -> 20.2 | H41: 0.000252702794
A42: Aqueous liquid 161002 | C42: 6.53 | D42: 0 | E42: 0 | F42: 0 | G42: =SUM(C42:F42) -> 6.53 | H42: 8.169055667e-05
A43: Waste Oil 13 08 99* | C43: 0 | D43: 1.38 | E43: 0.58 | F43: 0 | G43: 1.96 | H43: 2.451967704e-05
A44: WEEE 200136 | C44: 0 | D44: 0 | E44: 0.12 | F44: 0 | G44: 0.12 | H44: 1.501204717e-06
A45: Soil & Concrete (170101 & 170504) | C45: 0 | D45: 0 | E45: 0 | F45: 34.9 | G45: 34.9 | H45: 0.0004366003718
A46: Flourescent tubes 20 01 21* | C46: 0 | D46: 0.04 | E46: 0 | F46: 0 | G46: 0.04 | H46: 5.004015723e-07
A47: NOTE: Metal recycling is from site use only - metal from IBA is recycled by the IBA reprocessor.
A48: Soil & Concrete from construction of new gatehouse.
A50: Raw Material Usage | B50: Unit | C50: Q1 | D50: Q2 | E50: Q3 | F50: Q4 | G50: Year Total | H50: kg or Ltr /te
A51: Mains Water | B51: ltrs | C51: 12426 | D51: 12129 | E51: 15782 | F51: 15897 | G51: =SUM(C51:F51) -> 56234 | H51: =IF(G51>0,G51/$G$21,"-") -> 0.7034895504
A52: Other Water | B52: ltrs | C52: 23 | D52: 38 | E52: 45 | F52: 38 | G52: 144 | H52: =IF(G52>0,G52/$G$21,"-") -> 0.00180144566
A53: Ammonia | B53: kgs | C53: 92204.6 | D53: 32335.1 | E53: 37114.9 | F53: 42417.2 | G53: 204071.8 | H53: 2.552946239
A54: Urea | B54: kgs | C54: 0 | D54: 0 | E54: 0 | F54: 0 | G54: =SUM(C54:F54) -> 0 | H54: -
A55: Activated Carbon | B55: kgs | C55: 8813 | D55: 6402 | E55: 8891 | F55: 10336 | G55: 34442 | H55: 0.4308707738
A56: Lime / hydrated lime | B56: kgs | C56: 471390 | D56: 324793 | E56: 346777 | F56: 283389 | G56: 1426349 | H56: 17.84368205
A57: Fuel oil | B57: ltrs | C57: 50356.82 | D57: 92743.1 | E57: 11760.11 | F57: 74163 | G57: 229023.03 | H57: 2.865087107
A58: Gas | B58: cf | C58: 0 | D58: 0 | E58: 0 | F58: 0 | G58: 0
A59: Other | C59: 0 | D59: 0 | E59: 0 | F59: 0
A60: kgs ammonia calculated from volume using density ammonia solution = 0.911
A61: Fuel oil is amount used for process only = burners.
A63: Summary | B63: Line/Unit | C63: Q1 | D63: Q2 | E63: Q3 | F63: Q4 | G63: Year Total | J63: Hrs in year
A64: Availability of waste combustion by line, hrs | B64: =+B5 -> 1 | C64: 2083.8 | D64: 1519.51 | E64: 2203.67 | F64: 2140.4 | G64: =SUM(C64:F64) -> 7947.38 | H64: =(G64/J64) -> 0.9072351598 | J64: 8760
B65: 2 | C65: 0 | D65: 0 | E65: 0 | F65: 0 | H65: x %
B66: 3 | C66: 0 | D66: 0 | E66: 0 | F66: 0 | H66: x %
B67: 4 | C67: 0 | D67: 0 | E67: 0 | F67: 0 | H67: x %
B68: 5 | C68: 0 | D68: 0 | E68: 0 | F68: 0 | H68: x %
A69: Overall Availability, mean avg. of all lines, hrs | C69: 2150.8 | D69: 1620.5 | E69: 2203.93 | F69: 2214.4 | G69: =SUM(C69:F69) -> 8189.63 | H69: =G69/J64 -> 0.9348892694
A70: Hours of turbine operations, hrs | B70: 1 | C70: 2098.6 | D70: 1248.3 | E70: 2205.5 | F70: 2095.2 | G70: 7647.6 | H70: =G70/J64 -> 0.8730136986
A71: Hours of turbine operations, hrs | B71: 2 | C71: 0 | D71: 0 | E71: 0 | F71: 0 | G71: 0 | H71: x %
A72: Hours of heat / steam export | C72: 0 | D72: 0 | E72: 0 | F72: 0 | G72: 0 | H72: =IF(B72>0,G71/J64,"n/a") -> n/a
A73: Net Calorific Value of waste | B73: MJ/kg | C73: 10.04 | D73: 9.38 | E73: 10.33 | F73: 9.79 | G73: =AVERAGE(C73:F73) -> 9.885 | H73: -
A74: Abnormal Events | B74: qty. | C74: 0 | D74: 1 | E74: 0 | F74: 1 | G74: 2 | H74: =IF(G74>0,"yes","no") -> yes
A75: Abnormal operation | B75: hours | D75: 0.5 | E75: 0 | F75: 3.17 | G75: 3.67 | H75: =+(G75)/J64 -> 0.0004189497717
A76: Permit Breaches | B76: qty. | C76: 1 | D76: 1 | E76: 0 | F76: 0 | G76: 2 | H76: =IF(G76>0,"yes","no") -> yes
A77: NOTE: Single line plant as per note availability of each line is hrs that line has to report CEMS data to
A78: the regulator.
A79: Overall availability includes hours of OTNOC, start-up, shutdown, maintenance etc.

Sheet Operational Summary
A1: =+'Cover Page'!$B$29 -> Annual Performance Report 2020 | E1: =+'Cover Page'!$B$33 -> Peterborough Energy Recovery Facility
A3: Summary of Plant Operations and Maintenance during the reporting year | K3: Notes:
A5: The plant operated steadily throughout the first quarter of 2020 with 96.5% availabilty with only 107.7hrs not burning waste. In quarter 2 the annual outage was brought forward to May with all required controls in place during the COVID pandemic. The plant was off waste 664hrs including the annual shutdown outage period. The annual shutdown outage commenced one 1st May concluding on 14th May 2020 during which the plant combustion systems and FGT and ancilliary systems underwent checks, and as required repair, and legal compliance inspections under PSSR were carried out. One dust probe was replaced in July 2020, a like for like replacement. This underwent successful period of comparison of values to the standby and daily QAL3 checks as discussed with the Agency. The CEMS, including this probe, underwent QAL2 calibration checks in October 2020. During Q3 the plant ran steadily with only 4.5hrs downtime in the quarter. The CEMS second dust probe was replaced at the very end of the quarter directly before the annual linearity checks and QAL2 as agreed with the Agency. QAL2 and the second stack test of the year was completed in October. All species passed the stack test (where ELVs are applicable). The QAL2 factors were applied from 14th January 2021 upon receipt of the results. NOTE: amount of waste over the weighbridge was 85972 tonnes however 1295.56 was transferred out giving net waste in for incineration of 84676.44 tonnes. This is due to significant increase in local authority waste related to COVID 19 during outage period. Only 79935.86 tonnes was incinerated against the permitted 'quantity for incineration' of 85000 tonnes. | K5: Include summary of key operational and/or mainteanance activity undertaken in the year, such as any major component upgrades and/or replacements
A29: Summary of Residue Handling for the reporting year
A31: All IBA produced on site (including the metal content) is collected from site by Johnsons Aggregates and taken for reprocessing at their Ilkeston (EPR/MP3430AM/V004) or Bunny (EPR/CB3204UF/V003) sites where they have a 100% recycling policy. They remove and recycle the ferrous and non-ferrous metals and then create IBAA (Incinerator Bottom Ash Aggregate) from the remaining material. Their Aggregates team then utilise this in various construction and highways projects. APCr is collected by direct transfer from the on site silo into transport tanker by Grundons (or hauliers on their behalf) and goes to the O.C.O Technology Ltd (formally Carbon8) site at Brandon (EPR/JP3332FK) (unless not possible due to operational issues at OCO) where it is taken through their accelerated carbonation technology. These carbonated wastes are blended with binders and fillers and pellitised to form an aggregate. | K31: Include in here a summary of residue handling regimes and destinations

Sheet Perf. Form 1
A1: =+'Cover Page'!C39 -> 2020 | B1: Annual Reporting Performance Form 1
A3: =+'Cover Page'!B31 -> Permit EPR/NP3638ZS | F3: Operator: | G3: =+'Cover Page'!B37:I37 -> 0
A4: Facility: | B4: =+'Cover Page'!B33:I33 -> Peterborough Energy Recovery Facility | F4: Form: | G4: Performance 1
A6: Reporting Period from: | D6: 2020-01-01 | F6: to: | G6: 2020-12-31
A8: =+A1 -> 2020 | B8: Annual Reporting of Waste Disposal and Recovery
A9: Waste Description | C9: Disposal Route(s) | E9: Disposal Tonnes | G9: Recovery Tonnes | I9: % / tonne of waste incinerated
A10: 1) Hazardous Wastes
A11: APC Residues | C11: OCO Technology | G11: ='Operational Data'!G39 -> 2224.36 | I11: =IF((E11+G11)>0,(E11+G11)/'Operational Data'!$G$21, "-") -> 0.02782683103
A12: IBA | C12: N/A | E12: 0 | G12: 0 | I12: =IF((E12+G12)>0,(E12+G12)/'Operational Data'!$G$21, "-") -> -
A13: Waste Oil | C13: Slicker recycling | E13: 0 | G13: 1.4 | I13: =IF((E13+G13)>0,(E13+G13)/'Operational Data'!$G$21, "-") -> 1.751405503e-05
A14: Flourescent tubes | C14: W.A.S Ltd | E14: 0.004 | G14: 0 | I14: =IF((E14+G14)>0,(E14+G14)/'Operational Data'!$G$21, "-") -> 5.004015723e-08
A15: Total Hazardous Waste | E15: =SUM(E11:F14) -> 0.004 | G15: =SUM(G11:H14) -> 2225.76 | I15: =IF((E15+G15)>0,(E15+G15)/'Operational Data'!$G$21, "-") -> 0.02784439513
A17: 2) Non-Hazardous Wastes
A18: IBA | C18: Johnsons Aggregates | E18: 0 | G18: ='Operational Data'!G40 -> 17707.75 | I18: =IF((E18+G18)>0,(E18+G18)/'Operational Data'!$G$21, "-") -> 0.2215246485
A19: Ferrous Metal | C19: Sims metals | E19: 0 | G19: ='Operational Data'!G41 -> 20.2 | I19: =IF((E19+G19)>0,(E19+G19)/'Operational Data'!$G$21, "-") -> 0.000252702794
A20: Process Water | C20: N/A | E20: 0 | G20: 0 | I20: =IF((E20+G20)>0,(E20+G20)/'Operational Data'!$G$21, "-") -> -
A21: Waste water sludge | C21: Future Industrial | E21: 6.5 | G21: 0 | I21: =IF((E21+G21)>0,(E21+G21)/'Operational Data'!$G$21, "-") -> 8.131525549e-05
A22: WEEE | C22: PCC | E22: 0.12 | G22: 0 | I22: =IF((E22+G22)>0,(E22+G22)/'Operational Data'!$G$21, "-") -> 1.501204717e-06
A23: Total Non-Hazardous Waste | E23: =SUM(E18:F22) -> 6.62 | G23: =SUM(G18:H22) -> 17727.95 | I23: =IF((E23+G23)>0,(E23+G23)/'Operational Data'!$G$21, "-") -> 0.2218601678
A24: TOTAL WASTE | E24: =+E23+E15 -> 6.624 | G24: =+G23+G15 -> 19953.71 | I24: =IF((E24+G24)>0,(E24+G24)/'Operational Data'!$G$21, "-") -> 0.2497045629
A26: Operator’s comments :
A27: All IBA produced on site (including the metal content) is reprocessed by Johnsons Aggregates who recycle the ferrous and non-ferrous metals and create IBAA (Incinerator Bottom Ash Aggregate) from the remaining material. APCr is taken through OCO Technologies accelerated carbonation technology. These carbonated wastes are blended with binders and fillers and pellitised to form an aggregate. Other waste metal e.g. from maintenance is removed by Sims Metals.
A31: =+A1 -> 2020 | B31: Annual Reporting of Water and Other Raw Material Usage
A32: Raw Material | E32: Usage | G32: Unit | H32: Specific Useage | J32: Unit
A33: Mains Water | E33: =+'Operational Data'!G51 -> 56234 | G33: m3 | H33: =IF(E33>0,E33/'Operational Data'!$G$21,"-") -> 0.7034895504 | J33: m3/te
A34: Total Water | E34: =+'Operational Data'!G52+'Operational Data'!G51 -> 56378 | G34: m3 | H34: =IF(E34>0,E34/'Operational Data'!$G$21,"-") -> 0.705290996 | J34: m3/te
A35: Urea / Ammonia | E35: =+'Operational Data'!G53 -> 204071.8 | G35: kg | H35: =IF(E35>0,E35/'Operational Data'!$G$21,"-") -> 2.552946239 | J35: kg/te
A36: Activated Carbon | E36: =+'Operational Data'!G55 -> 34442 | G36: kg | H36: =IF(E36>0,E36/'Operational Data'!$G$21,"-") -> 0.4308707738 | J36: kg/te
A37: Lime / hydrated lime / Sodium Bicarb. | E37: =+'Operational Data'!G56 -> 1426349 | G37: kg | H37: =IF(E37>0,E37/'Operational Data'!$G$21,"-") -> 17.84368205 | J37: kg/te
A39: Operator’s comments :
A42: =+A31 -> 2020 | B42: Annual Reporting of other performance indicators
A43: Parameter | C43: Results by Line
C44: A1 | D44: A2 | E44: A3 | F44: A4 | G44: A5 | I44: Turbine 1 | J44: Turbine 2
A45: Operating hours for the year, hours | C45: ='Operational Data'!G64 -> 7947.38 | D45: N/A | E45: N/A | F45: N/A | G45: N/A | H45: N/A | I45: ='Operational Data'!G70 -> 7647.6 | J45: N/A
A46: Number of periods of abnormal operation, qty. | C46: 2 | D46: N/A | E46: N/A | F46: N/A | G46: N/A | H46: N/A | I46: N/A | J46: N/A
A47: Cumulative hours of abnormal operation for this year, hours | C47: 3.56 | D47: N/A | E47: N/A | F47: N/A | G47: N/A | H47: N/A | I47: N/A | J47: N/A
A49: Operator’s comments :
A50: Operating hrs = hrs for which CEMS data is reportable. Total 8190 including OTNOC.
A53: Signed: | G53: Date: | H53: 2021-01-20

Sheet Energy Form 1
A1: =+'Cover Page'!C39 -> 2020 | B1: Annual Reporting of Energy Usage/Export
A3: =+'Cover Page'!B31 -> Permit EPR/NP3638ZS | F3: Operator: | G3: =+'Cover Page'!B37:I37 -> 0
A5: Facility: | B5: =+'Cover Page'!B33:I33 -> Peterborough Energy Recovery Facility | F5: Form: | G5: Energy 1
A7: Reporting Period from: | D7: =+'Perf. Form 1'!D6:E6 -> 2020-01-01 | F7: to: | G7: =+'Perf. Form 1'!G6:H6 -> 2020-12-31
A9: Energy Source | D9: Energy Usage | F9: Unit | G9: Specific Useage (KWh/tonne incinerated
A10: Electricity Produced | D10: =+'Operational Data'!G28 -> 59422.51 | F10: MWh | G10: =+'Operational Data'!H28 -> 743.3779358
A11: Electricity Imported | D11: =+'Operational Data'!G31 -> 659.805 | F11: MWh | G11: =+'Operational Data'!H31 -> 8.254186485
A12: Electricity Exported | D12: =+'Operational Data'!G29 -> 52391.49 | F12: MWh | G12: =+'Operational Data'!H29 -> 655.4195992
A13: Gas Oil | D13: =('Operational Data'!G57*0.85)/1000 -> 194.6695755 | F13: tonnes
A14: Steam/hot water exported | D14: =+'Operational Data'!G34 -> 0 | F14: GWh | G14: =+'Operational Data'!H34 -> -
A18: Operator’s comments :
A19: Production of energy and energy usuage broadly in line with previous years. Mass diesel (gas oil) calculated with density = 0.85 for kg then /1000 for tonnes.
A29: Signed: | G29: Date: | H29: 2021-01-20

Sheet Permit Compliance
A1: =+'Cover Page'!$B$29 -> Annual Performance Report 2020 | E1: =+'Cover Page'!$B$33 -> Peterborough Energy Recovery Facility
A3: Summary of Permit Compliance
A5: Compliance with permit limits for continuously monitored pollutants
A7: The plant met its emission limits as shown in the table below:
A8: Substance | C8: Percentage time compliant during operation | L8: Notes:
C9: Half-hourly limit | F9: Daily limit | L9: Report to 2 decimal places, i.e. xx.xx% Please provide a brief summary of each notification or non-compliance in the table (rather than just referring to notifications that were sent to the Regulator).
A10: Particulates | C10: 1 | F10: 1
A11: Oxides of nitrogen | C11: 1 | F11: 1
A12: Sulphur dioxide | C12: 1 | F12: 1
A13: Carbon monoxide | C13: 100% 95% of 10-min averages | F13: 1
A14: Total organic carbon | C14: 0.9998 | F14: 1
A15: Hydrogen chloride | C15: 1 | F15: 1
A16: Hydrogen fluoride | C16: N/A | F16: N/A
A18: NOTE: Dust is 100% as dust was within permit ELV for abnormal operations 13th April 2020
A19: 3 individual 10 mins over 150mg/Nm3 during year. ZERO breaches of 95% of 10 min average.
A21: Summary of any notifications or non-compliances under the permit
A22: Date | B22: Summary of notification or non-compliance [including Line/Reference] | E22: Reason | H22: Measures taken to prevent reoccurrence
A23: 31st March 2020 | B23: TOC - one half hour 55.7mg/Nm3 | E23: Explosion on grate | H23: Ongoing waste inspections
A24: 13th April 2020 | B24: Abnormal Operations - 30mins. Dust indicated above ELV but standby instrument and process instruments all show this to be incorrect. Investigation by OEM engineer | E24: Intermittant fault in instrument calibration check phase | H24: New dust probe has been purchased and installed - QAL3 and comparison to other unit succesful showing accurate readings, QAL2 Oct 2020.
A25: 3rd June 2020 | B25: TOC - one half hour 21.9mg/Nm3 | E25: Explosion on grate | H25: Ongoing waste inspections
A26: 10th December 2020 | B26: Abnormal Operations - 3hrs 10 mins. The screw conveyor which delivers PAC had a component which was failing. The unit has been fully functional and dosing normally but making a distinct noise. Proactive repair completed | E26: Proactive repair on item which investigation suggested was develoing a problem and may have caused both safety and environmental issue had it failed. | H26: N/A Proactive action to prevent non-compliance
A29: Summary of any complaints received and actions to taken to resolve them.
A30: Date | B30: Summary of complaint [including Line/Reference] | E30: Reason * | H30: Measures taken to prevent reoccurrence
B31: No complaints received
E34: * including whether substantiated by the operator or the EA

Sheet Improvements
A1: =+'Cover Page'!$B$29 -> Annual Performance Report 2020 | E1: =+'Cover Page'!$B$33 -> Peterborough Energy Recovery Facility
A3: Summary of Plant Improvements
A5: Summary of any efficiency improvements that have been completed within the year.
A6: Large sodium lights replaced with LED as they come up for replacement reducing parasitic load. Both duty & standby dust probes replaced.
A16: Summary of any permit improvement conditions that have been completed within the year and the resulting environmental benefits.
A17: None All completed between December 2015 and April 2017 within timeframes required by permit. All accepted by the Agency
A27: Summary of any changes to the plant or operating techniques which required a variation to the permit and a summary of the resulting environmental impact.
A28: None
A38: Summary of any other improvements made to the plant or planned to be made and a summary of the resulting environmental benefits.
A39: The current stack flowmeter used for mass calculations (note not used for compliance measurements) will be replaced during 2021 to allow installation of separate duty and standby flowmeters rather than a single cross-stack meter. This requires alteration of mounting ports to meet the standards for installation of such units and so will be planned to completed during the annual outage period within 2021.

Sheet Public Liasion
A1: =+'Cover Page'!$B$29 -> Annual Performance Report 2020 | E1: =+'Cover Page'!$B$33 -> Peterborough Energy Recovery Facility
A3: Details of Public & Stakeholder Liasion
A5: Summary of events held during the reporting year.
A6: Date | C6: Description
A7: Bi-monthly | C7: Client meetings with Peterborough City Council
A9: Cancelled 2020 March onwards due to ongoing COVID-19 pandemic | C9: Heritage open days - open days for general public. School and local group visits and site tours
A11: Quarterly | C11: Viridor in Peterborough Meetings for the Viridor in Peterborough community fund - funding local projects based around sustainability, local need, community involvement, value for money and education
A13: As requested | C13: Environment Agency visits and site tours - as requested
C15: We will hold community liaison meetings on request after no attendance by local companies or residents since August 2016.
A18: List of events planned for next year
A19: Date | C19: Description
A31: If you wish to be involved in the public liasion programme, please contact enquiries@viridor.co.uk

Sheet Residue Quality
A1: =+'Cover Page'!$B$29 -> Annual Performance Report 2020 | E1: =+'Cover Page'!$B$33 -> Peterborough Energy Recovery Facility
A3: Residue Quality Monitoring Requirements
A5: Summary of monitoring undertaken and compliance
A6: IBA undergoes quarterly sampling as required by permit condition 3.5.1c and table 3.5 including TOC, dioxins & furans. TOC has a limit of 3%.
A8: 24 samples of IBA are taken each year (including the 4 permit complaince samples) to undergo basic hazard analysis as required by the ESA protocol.
A10: APCr is sampled quarterly as per permit condition 3.5.1c and table 3.5
A13: Commentary on any specific events
A14: Date & Event | C14: Description
A27: Residue Quality Monitoring Results
A28: Parameter (unit) | C28: Limit | D28: Normal Operation
D29: Bottom ash | F29: APC Residues
A30: Loss on Ignition (average %) | C30: <5% | D30: N/A
A31: Total Organic Carbon (average %) | C31: <3% | D31: 0.007
A32: No. of Assessments Undertaken | C32: --- | D32: 4 Permit compliance samples 24 ESA hazard assessment - (including 4 above) to end December 2020. | F32: 4
A33: No. of Hazardous Results | C33: --- | D33: 0
A35: Comments :
A36: In 2020 the highest recorded on these samples is 1.0 % and the lowest 0.5 %. Average 0.70 %. All IBA remained non-hazardous as per the ESA protocol within 2020. Value above is average of the quarters

Sheet Water
A1: =+'Cover Page'!$B$29 -> Annual Performance Report 2020 | E1: =+'Cover Page'!$B$33 -> Peterborough Energy Recovery Facility
A3: Emissions to Water
A5: Summary of monitoring undertaken and compliance
A6: Discharge of surface water at W1 - free of visible oil and grease
A13: Commentary on any specific events
A14: Date & Event | C14: Description
A22: Emissions to Water / Sewer
A23: Parameter | D23: Monitoring Frequency | G23: Limit | H23: Target | I23: Max. | J23: Average
A24: W1 - free of oil and grease | D24: Monthly | G24: No visible oil / grease

Sheet Air (periodic) H1 stack test
A1: =+'Cover Page'!$B$29 -> Annual Performance Report 2020 | E1: =+'Cover Page'!$B$33 -> Peterborough Energy Recovery Facility
A3: Emissions to Air (periodically monitored)
A5: Summary of monitoring undertaken, standards used and compliance | M5: Notes:
A6: All analysis below completed by permit specified BS EN method other than nitrous oxide which was completed by allowed alternative method M22. | M6: Template may require adjustment for any bespoke monitoring requirements of permit.
A9: Results of emissions to air that are periodically monitored
A10: Substance | C10: Ref. Period | D10: Emission Limit Value | F10: Average | M10: User to add additional tables as necessary, depending on whether quarterly or bi-annual reporting is required for the compliance year
F11: A1 | G11: A2 | H11: A3 | I11: A4 | J11: A5
A12: Hydrogen fluoride | C12: 1 hr | D12: 2 mg/m3 | F12: 0.24 | G12: N/A | H12: N/A | I12: N/A | J12: N/A
A13: Cd and Th and their compounds | C13: 6-8hrs | D13: 0.05 mg/m3 | F13: 0.002 | G13: N/A | H13: N/A | I13: N/A | J13: N/A
A14: Hg and its compounds | C14: 6-8hrs | D14: 0.05 mg/m3 | F14: 0.001 | G14: N/A | H14: N/A | I14: N/A | J14: N/A
A15: Sb, As, Pb, Cr, Co, Cu, Mn, Ni, V and their compounds | C15: 6-8hrs | D15: 0.5 mg/m3 | F15: 0.08 | G15: N/A | H15: N/A | I15: N/A | J15: N/A
A16: Dioxins & Furans (I-TEQ) | C16: 6-8hrs | D16: 0.1 ng/m3 | F16: 0.009 | G16: N/A | H16: N/A | I16: N/A | J16: N/A
A17: PCBs (WHO-TEQ Humans / Mammals) | C17: 6-8hrs | D17: None set ng/m3 | F17: 0.003 | G17: N/A | H17: N/A | I17: N/A | J17: N/A
A18: PCBs (WHO-TEQ Fish) | C18: 6-8hrs | D18: None set ng/m3 | F18: 0.0002 | G18: N/A | H18: N/A | I18: N/A | J18: N/A
A19: PCBs (WHO-TEQ Birds) | C19: 6-8hrs | D19: None set ng/m3 | F19: 0.006 | G19: N/A | H19: N/A | I19: N/A | J19: N/A
A20: Dioxins & Furans (WHO-TEQ Humans / Mammals) | C20: 6-8hrs | D20: None set ng/m3 | F20: 0.007 | G20: N/A | H20: N/A | I20: N/A | J20: N/A
A21: Dioxins & Furans (WHO-TEQ Fish) | C21: 6-8hrs | D21: None set ng/m3 | F21: 0.007 | G21: N/A | H21: N/A | I21: N/A | J21: N/A
A22: Dioxins & Furans (WHO-TEQ Birds) | C22: 6-8hrs | D22: None set ng/m3 | F22: 0.01 | G22: N/A | H22: N/A | I22: N/A | J22: N/A
A23: Anthanthrene | C23: 6-8hrs | D23: None set µg/m3 | F23: <0.0038 | G23: N/A | H23: N/A | I23: N/A | J23: N/A
A24: Benzo(a)anthracene | C24: 6-8hrs | D24: None set µg/m3 | F24: <0.0038 | G24: N/A | H24: N/A | I24: N/A | J24: N/A
A25: Benzo(a)pyrene | C25: 6-8hrs | D25: None set µg/m3 | F25: <0.0038 | G25: N/A | H25: N/A | I25: N/A | J25: N/A
A26: Benzo(b)fluoranthene | C26: 6-8hrs | D26: None set µg/m3 | F26: <0.0038 | G26: N/A | H26: N/A | I26: N/A | J26: N/A
A27: Benzo(b)naptho(2,1-d) thiophene | C27: 6-8hrs | D27: None set µg/m3 | F27: <0.0051 | G27: N/A | H27: N/A | I27: N/A | J27: N/A
A28: Benzo(c)phenanthrene | C28: 6-8hrs | D28: None set µg/m3 | F28: <0.0051 | G28: N/A | H28: N/A | I28: N/A | J28: N/A
A29: Benzo(ghi)perylene | C29: 6-8hrs | D29: None set µg/m3 | F29: <0.0038 | G29: N/A | H29: N/A | I29: N/A | J29: N/A
A30: Benzo(k)fluoranthene | C30: 6-8hrs | D30: None set µg/m3 | F30: <0.0038 | G30: N/A | H30: N/A | I30: N/A | J30: N/A
A31: Cholanthrene | C31: 6-8hrs | D31: None set µg/m3 | F31: <0.0051 | G31: N/A | H31: N/A | I31: N/A | J31: N/A
A32: Chrysene | C32: 6-8hrs | D32: None set µg/m3 | F32: 0.01 | G32: N/A | H32: N/A | I32: N/A | J32: N/A
A33: Cyclopenta(cd)pyrene | C33: 6-8hrs | D33: None set µg/m3 | F33: <0.0051 | G33: N/A | H33: N/A | I33: N/A | J33: N/A
A34: Dibenzo(ai)pyrene | C34: 6-8hrs | D34: None set µg/m3 | F34: <0.0064 | G34: N/A | H34: N/A | I34: N/A | J34: N/A
A35: Dibenzo(ah)anthracene | C35: 6-8hrs | D35: None set µg/m3 | F35: <0.0038 | G35: N/A | H35: N/A | I35: N/A | J35: N/A
A36: Fluoranthene | C36: 6-8hrs | D36: None set µg/m3 | F36: 0.01 | G36: N/A | H36: N/A | I36: N/A | J36: N/A
A37: Indeno(123-cd) pyrene | C37: 6-8hrs | D37: None set µg/m3 | F37: <0.0038 | G37: N/A | H37: N/A | I37: N/A | J37: N/A
A38: Naphthalene | C38: 6-8hrs | D38: None set µg/m3 | F38: 0.05 | G38: N/A | H38: N/A | I38: N/A | J38: N/A
A39: Nitrous Oxide | C39: 1 hr | D39: None set mg/m3 | F39: 0.29 | G39: N/A | H39: N/A | I39: N/A | J39: N/A
A40: Comments :
A41: Stack test completed 27th - 29th April 2020.

Sheet Air (periodic) H2 stack test
A1: =+'Cover Page'!$B$29 -> Annual Performance Report 2020 | E1: =+'Cover Page'!$B$33 -> Peterborough Energy Recovery Facility
A3: Emissions to Air (periodically monitored)
A5: Summary of monitoring undertaken, standards used and compliance | M5: Notes:
A6: All analysis below completed by permit specified BS EN method other than nitrous oxide which was completed by allowed alternative method M22. | M6: Template may require adjustment for any bespoke monitoring requirements of permit.
A9: Results of emissions to air that are periodically monitored
A10: Substance | C10: Ref. Period | D10: Emission Limit Value | F10: Average | M10: User to add additional tables as necessary, depending on whether quarterly or bi-annual reporting is required for the compliance year
F11: A1 | G11: A2 | H11: A3 | I11: A4 | J11: A5
A12: Hydrogen fluoride | C12: 1 hr | D12: 2 mg/m3 | F12: 0.15 | G12: N/A | H12: N/A | I12: N/A | J12: N/A
A13: Cd and Th and their compounds | C13: 6-8hrs | D13: 0.05 mg/m3 | F13: 0.0009 | G13: N/A | H13: N/A | I13: N/A | J13: N/A
A14: Hg and its compounds | C14: 6-8hrs | D14: 0.05 mg/m3 | F14: 0.0005 | G14: N/A | H14: N/A | I14: N/A | J14: N/A
A15: Sb, As, Pb, Cr, Co, Cu, Mn, Ni, V and their compounds | C15: 6-8hrs | D15: 0.5 mg/m3 | F15: 0.08 | G15: N/A | H15: N/A | I15: N/A | J15: N/A
A16: Dioxins & Furans (I-TEQ) | C16: 6-8hrs | D16: 0.1 ng/m3 | F16: 0.0002 | G16: N/A | H16: N/A | I16: N/A | J16: N/A
A17: PCBs (WHO-TEQ Humans / Mammals) | C17: 6-8hrs | D17: None set ng/m3 | F17: 0.0003 | G17: N/A | H17: N/A | I17: N/A | J17: N/A
A18: PCBs (WHO-TEQ Fish) | C18: 6-8hrs | D18: None set ng/m3 | F18: 0 | G18: N/A | H18: N/A | I18: N/A | J18: N/A
A19: PCBs (WHO-TEQ Birds) | C19: 6-8hrs | D19: None set ng/m3 | F19: 0.001 | G19: N/A | H19: N/A | I19: N/A | J19: N/A
A20: Dioxins & Furans (WHO-TEQ Humans / Mammals) | C20: 6-8hrs | D20: None set ng/m3 | F20: 0.0002 | G20: N/A | H20: N/A | I20: N/A | J20: N/A
A21: Dioxins & Furans (WHO-TEQ Fish) | C21: 6-8hrs | D21: None set ng/m3 | F21: 0.0003 | G21: N/A | H21: N/A | I21: N/A | J21: N/A
A22: Dioxins & Furans (WHO-TEQ Birds) | C22: 6-8hrs | D22: None set ng/m3 | F22: 0.0003 | G22: N/A | H22: N/A | I22: N/A | J22: N/A
A23: Anthanthrene | C23: 6-8hrs | D23: None set µg/m3 | F23: <0.0017 | G23: N/A | H23: N/A | I23: N/A | J23: N/A
A24: Benzo(a)anthracene | C24: 6-8hrs | D24: None set µg/m3 | F24: 0.006 | G24: N/A | H24: N/A | I24: N/A | J24: N/A
A25: Benzo(a)pyrene | C25: 6-8hrs | D25: None set µg/m3 | F25: 0.003 | G25: N/A | H25: N/A | I25: N/A | J25: N/A
A26: Benzo(b)fluoranthene | C26: 6-8hrs | D26: None set µg/m3 | F26: 0.1 | G26: N/A | H26: N/A | I26: N/A | J26: N/A
A27: Benzo(b)naptho(2,1-d) thiophene | C27: 6-8hrs | D27: None set µg/m3 | F27: 0.003 | G27: N/A | H27: N/A | I27: N/A | J27: N/A
A28: Benzo(c)phenanthrene | C28: 6-8hrs | D28: None set µg/m3 | F28: 0.002 | G28: N/A | H28: N/A | I28: N/A | J28: N/A
A29: Benzo(ghi)perylene | C29: 6-8hrs | D29: None set µg/m3 | F29: 0.007 | G29: N/A | H29: N/A | I29: N/A | J29: N/A
A30: Benzo(k)fluoranthene | C30: 6-8hrs | D30: None set µg/m3 | F30: 0.034 | G30: N/A | H30: N/A | I30: N/A | J30: N/A
A31: Cholanthrene | C31: 6-8hrs | D31: None set µg/m3 | F31: 0.01 | G31: N/A | H31: N/A | I31: N/A | J31: N/A
A32: Chrysene | C32: 6-8hrs | D32: None set µg/m3 | F32: 0.013 | G32: N/A | H32: N/A | I32: N/A | J32: N/A
A33: Cyclopenta(cd)pyrene | C33: 6-8hrs | D33: None set µg/m3 | F33: 0.005 | G33: N/A | H33: N/A | I33: N/A | J33: N/A
A34: Dibenzo(ai)pyrene | C34: 6-8hrs | D34: None set µg/m3 | F34: <0.0017 | G34: N/A | H34: N/A | I34: N/A | J34: N/A
A35: Dibenzo(ah)anthracene | C35: 6-8hrs | D35: None set µg/m3 | F35: <0.0017 | G35: N/A | H35: N/A | I35: N/A | J35: N/A
A36: Fluoranthene | C36: 6-8hrs | D36: None set µg/m3 | F36: 0.069 | G36: N/A | H36: N/A | I36: N/A | J36: N/A
A37: Indeno(123-cd) pyrene | C37: 6-8hrs | D37: None set µg/m3 | F37: 0.004 | G37: N/A | H37: N/A | I37: N/A | J37: N/A
A38: Naphthalene | C38: 6-8hrs | D38: None set µg/m3 | F38: 2.889 | G38: N/A | H38: N/A | I38: N/A | J38: N/A
A39: Nitrous Oxide | C39: 1 hr | D39: None set mg/m3 | F39: 0.03 | G39: N/A | H39: N/A | I39: N/A | J39: N/A
A40: Comments :
A41: Stack test completed 6th - 13th October 2020.

Sheet Air (CEMS)
A1: =+'Cover Page'!$B$29 -> Annual Performance Report 2020 | I1: =+'Cover Page'!$B$33 -> Peterborough Energy Recovery Facility
A3: Emissions to Air (continously monitored)
P4: Notes:
A5: Summary of monitoring undertaken, standards used and compliance | P5: Template may require adjustment for any bespoke monitoring requirements of permit
A6: All results below monitored by CEMs. No invalid days of data. | P6: Report to 2 decimal places, i.e. xx.xx%
A9: Results of emissions to air that are continuously monitored (maximum and average values for each line)
A10: Substance | B10: Reference Period | C10: Emission Limit Value | D10: A1 | F10: A2 | H10: A3 | J10: A4 | L10: A5
D11: Max. | E11: Avg. | F11: Max. | G11: Avg. | H11: Max. | I11: Avg. | J11: Max. | K11: Avg. | L11: Max. | M11: Avg.
A12: Oxides of nitrogen | B12: Daily mean | C12: 150 mg/m3 | D12: =NOx!O19 -> 127.8 | E12: =NOx!N19 -> 114.7333333 | F12: N/A | G12: N/A | H12: N/A | I12: N/A | J12: N/A | K12: N/A | L12: N/A | M12: N/A
B13: ½ hourly mean | C13: 400 mg/m3 | D13: =NOx!M19 -> 184.4 | E13: =NOx!L19 -> 114.375 | F13: N/A | G13: N/A | H13: N/A | I13: N/A | J13: N/A | K13: N/A | L13: N/A | M13: N/A
A14: Particulates | B14: Daily mean | C14: 10 mg/m3 | D14: =Particulates!O19 -> 3.7 | E14: =Particulates!N19 -> 0.2849166667 | F14: N/A | G14: N/A | H14: N/A | I14: N/A | J14: N/A | K14: N/A | L14: N/A | M14: N/A
B15: ½ hourly mean | C15: 30 mg/m3 | D15: =Particulates!M19 -> 151.9 | E15: =Particulates!L19 -> 0.2919166667 | F15: N/A | G15: N/A | H15: N/A | I15: N/A | J15: N/A | K15: N/A | L15: N/A | M15: N/A
A16: Total Organic Carbon | B16: Daily mean | C16: 10 mg/m3 | D16: =TOC!O19 -> 1.3 | E16: =TOC!N19 -> 0.021 | F16: N/A | G16: N/A | H16: N/A | I16: N/A | J16: N/A | K16: N/A | L16: N/A | M16: N/A
B17: ½ hourly mean | C17: 20 mg/m3 | D17: =TOC!M19 -> 55.7 | E17: =TOC!L19 -> 0.02491666667 | F17: N/A | G17: N/A | H17: N/A | I17: N/A | J17: N/A | K17: N/A | L17: N/A | M17: N/A
A18: Hydrogen chloride | B18: Daily mean | C18: 10 mg/m3 | D18: =HCl!O19 -> 9.1 | E18: =HCl!N19 -> 7.1075 | F18: N/A | G18: N/A | H18: N/A | I18: N/A | J18: N/A | K18: N/A | L18: N/A | M18: N/A
B19: ½ hourly mean | C19: 60 mg/m3 | D19: =HCl!M19 -> 29 | E19: =HCl!L19 -> 7.066666667 | F19: N/A | G19: N/A | H19: N/A | I19: N/A | J19: N/A | K19: N/A | L19: N/A | M19: N/A
A20: Sulphur dioxide | B20: Daily mean | C20: 50 mg/m3 | D20: ='SO2'!O19 -> 38.1 | E20: ='SO2'!N19 -> 12.77666667 | F20: N/A | G20: N/A | H20: N/A | I20: N/A | J20: N/A | K20: N/A | L20: N/A | M20: N/A
B21: ½ hourly mean | C21: 200 mg/m3 | D21: ='SO2'!M19 -> 127.9 | E21: ='SO2'!L19 -> 12.80833333 | F21: N/A | G21: N/A | H21: N/A | I21: N/A | J21: N/A | K21: N/A | L21: N/A | M21: N/A
A22: Carbon monoxide | B22: Daily mean | C22: 50 mg/m3 | D22: ='CO 95% 10 min'!Q19 -> 2.4 | E22: ='CO 95% 10 min'!P19 -> 0.2641666667 | F22: N/A | G22: N/A | H22: N/A | I22: N/A | J22: N/A | K22: N/A | L22: N/A | M22: N/A
B23: ½ hourly mean * | C23: 100 mg/m3 * | D23: N/A | E23: N/A | F23: N/A | G23: N/A | H23: N/A | I23: N/A | J23: N/A | K23: N/A | L23: N/A | M23: N/A
B24: 95%ile 10-min avg * | C24: 150 mg/m3 * | D24: ='CO 95% 10 min'!M19 -> 13 | E24: ='CO 95% 10 min'!N19 -> 0.2666666667 | F24: N/A | G24: N/A | H24: N/A | I24: N/A | J24: N/A | K24: N/A | L24: N/A | M24: N/A
A25: Ammonia | B25: Daily mean | C25: No limit set | D25: ='NH3'!O19 -> 6 | E25: ='NH3'!N19 -> 0.9666666667 | F25: N/A | G25: N/A | H25: N/A | I25: N/A | J25: N/A | K25: N/A | L25: N/A | M25: N/A
A26: * = delete or amend as appropriate
A27: Comments : | B27: 31st March 2020 - TOC - one half hour 55.7mg/Nm3 - Schedule 5 duly submitted. 3rd June 2020 - TOC - one half hour 21.9mg/Nm3 - Schedule 5 duly submitted. 13th April half hour reading of 151.9 was an instrument error - reported - abnormal operations. The other in line instrument confirmed the actual reading from the combustion process as 0.1mg/Nm3.
A28: Note: Daily NOx ELV is 150mg/Nm3 not 200mg/Nm3.

Sheet HCl
A1: =+'Cover Page'!$B$29 -> Annual Performance Report 2020 | E1: =+'Cover Page'!$B$33 -> Peterborough Energy Recovery Facility
A3: Monitoring of Hydrogen Chloride emissions | D3: Whole Installation | G3: See Notes in Cell Q3 | J3: =+A3 -> Monitoring of Hydrogen Chloride emissions | N3: Per Combustion Line | Q3: Notes:
Q4: User to add logic to complete Whole installation, Table A5:G18. From the data in Per Combustion Line, Table J6:O79, subject to No. of lines installed
A5: mg/Nm3 | B5: 1/2 Hourly Reference Periods | E5: Daily Reference Periods
A6: =+'Cover Page'!C39 -> 2020 | B6: 1/2 hourly HCl ELV | C6: Monthly 1/2 hourly mean | D6: Highest 1/2 hourly maximum | E6: Daily HCl ELV | F6: Monthly daily mean | G6: Highest daily maximum | J6: =+A6 -> 2020 | K6: mg/Nm3 | L6: Monthly 1/2 hourly mean | M6: Monthly 1/2 hourly maximum | N6: Monthly daily mean | O6: Monthly daily maximum
A7: Jan | B7: 60 | C7: =L7 -> 7.3 | D7: =M7 -> 13.4 | E7: 10 | F7: =N7 -> 7.32 | G7: =O7 -> 7.5 | J7: A1 | K7: Jan | L7: 7.3 | M7: 13.4 | N7: 7.32 | O7: 7.5
A8: Feb | B8: 60 | C8: =L8 -> 7.3 | D8: =M8 -> 19.8 | E8: 10 | F8: =N8 -> 7.44 | G8: =O8 -> 8.3 | K8: Feb | L8: 7.3 | M8: 19.8 | N8: 7.44 | O8: 8.3
A9: Mar | B9: 60 | C9: 7.5 | D9: 12.4 | E9: 10 | F9: 7.52 | G9: 7.6 | K9: Mar | L9: 7.5 | M9: 12.4 | N9: 7.52 | O9: 7.6 | Q9: Whole Installation table A5:G18:
A10: Apr | B10: 60 | C10: 7.2 | D10: 29 | E10: 10 | F10: 7.23 | G10: 9.1 | K10: Apr | L10: 7.2 | M10: 29 | N10: 7.23 | O10: 9.1 | Q10: Mean: for 1/2 hourly and daily periods calculate mean of values across all operational combustion lines for the month
A11: May | B11: 60 | C11: 7.2 | D11: 10.8 | E11: 10 | F11: 7.25 | G11: 7.7 | K11: May | L11: 7.2 | M11: 10.8 | N11: 7.25 | O11: 7.7
A12: Jun | B12: 60 | C12: 7.2 | D12: 18.3 | E12: 10 | F12: 7.25 | G12: 7.6 | K12: Jun | L12: 7.2 | M12: 18.3 | N12: 7.25 | O12: 7.6
A13: Jul | B13: 60 | C13: 7.1 | D13: 19.9 | E13: 10 | F13: 7.13 | G13: 7.8 | K13: Jul | L13: 7.1 | M13: 19.9 | N13: 7.13 | O13: 7.8 | Q13: Maximum: for 1/2 hourly and daily periods use the highest value across all operational combustion lines for the month
A14: Aug | B14: 60 | C14: 7.5 | D14: 15.2 | E14: 10 | F14: 7.51 | G14: 7.8 | K14: Aug | L14: 7.5 | M14: 15.2 | N14: 7.51 | O14: 7.8
A15: Sep | B15: 60 | C15: 7.2 | D15: 16.2 | E15: 10 | F15: 7.15 | G15: 7.7 | K15: Sep | L15: 7.2 | M15: 16.2 | N15: 7.15 | O15: 7.7
A16: Oct | B16: 60 | C16: 6.5 | D16: 15.8 | E16: 10 | F16: 6.62 | G16: 7.7 | K16: Oct | L16: 6.5 | M16: 15.8 | N16: 6.62 | O16: 7.7
A17: Nov | B17: 60 | C17: 6.7 | D17: 16.7 | E17: 10 | F17: 6.75 | G17: 7.7 | K17: Nov | L17: 6.7 | M17: 16.7 | N17: 6.75 | O17: 7.7
A18: Dec | B18: 60 | C18: 6.1 | D18: 19.7 | E18: 10 | F18: 6.12 | G18: 7.6 | K18: Dec | L18: 6.1 | M18: 19.7 | N18: 6.12 | O18: 7.6
K19: Annual | L19: =AVERAGE(L7:L18) -> 7.066666667 | M19: =MAX(M7:M18) -> 29 | N19: =AVERAGE(N7:N18) -> 7.1075 | O19: =MAX(O7:O18) -> 9.1
J21: =+A6 -> 2020 | K21: mg/Nm3 | L21: Monthly 1/2 hourly mean | M21: Monthly 1/2 hourly maximum | N21: Monthly daily mean | O21: Monthly daily maximum
J22: A2 | K22: Jan | L22: N/A | M22: N/A | N22: N/A | O22: N/A
K23: Feb | L23: N/A | M23: N/A | N23: N/A | O23: N/A
K24: Mar | L24: N/A | M24: N/A | N24: N/A | O24: N/A
K25: Apr | L25: N/A | M25: N/A | N25: N/A | O25: N/A
K26: May | L26: N/A | M26: N/A | N26: N/A | O26: N/A
K27: Jun | L27: N/A | M27: N/A | N27: N/A | O27: N/A
K28: Jul | L28: N/A | M28: N/A | N28: N/A | O28: N/A
K29: Aug | L29: N/A | M29: N/A | N29: N/A | O29: N/A
K30: Sep | L30: N/A | M30: N/A | N30: N/A | O30: N/A
K31: Oct | L31: N/A | M31: N/A | N31: N/A | O31: N/A
K32: Nov | L32: N/A | M32: N/A | N32: N/A | O32: N/A
K33: Dec | L33: N/A | M33: N/A | N33: N/A | O33: N/A
K34: Annual | L34: =AVERAGE(L22:L33) ->  | M34: =MAX(M22:M33) -> 0 | N34: =AVERAGE(N22:N33) ->  | O34: =MAX(O22:O33) -> 0
J36: =+A6 -> 2020 | K36: mg/Nm3 | L36: Monthly 1/2 hourly mean | M36: Monthly 1/2 hourly maximum | N36: Monthly daily mean | O36: Monthly daily maximum
J37: A3 | K37: Jan | L37: N/A | M37: N/A | N37: N/A | O37: N/A
K38: Feb | L38: N/A | M38: N/A | N38: N/A | O38: N/A
K39: Mar | L39: N/A | M39: N/A | N39: N/A | O39: N/A
K40: Apr | L40: N/A | M40: N/A | N40: N/A | O40: N/A
K41: May | L41: N/A | M41: N/A | N41: N/A | O41: N/A
K42: Jun | L42: N/A | M42: N/A | N42: N/A | O42: N/A
C43: 01733 465284 | K43: Jul | L43: N/A | M43: N/A | N43: N/A | O43: N/A
K44: Aug | L44: N/A | M44: N/A | N44: N/A | O44: N/A
C45: kgoldacre@viridor.co.uk | K45: Sep | L45: N/A | M45: N/A | N45: N/A | O45: N/A
K46: Oct | L46: N/A | M46: N/A | N46: N/A | O46: N/A
K47: Nov | L47: N/A | M47: N/A | N47: N/A | O47: N/A
A48: Comments : | K48: Dec | L48: N/A | M48: N/A | N48: N/A | O48: N/A
K49: Annual | L49: =AVERAGE(L37:L48) ->  | M49: =MAX(M37:M48) -> 0 | N49: =AVERAGE(N37:N48) ->  | O49: =MAX(O37:O48) -> 0
J51: =+A6 -> 2020 | K51: mg/Nm3 | L51: Monthly 1/2 hourly mean | M51: Monthly 1/2 hourly maximum | N51: Monthly daily mean | O51: Monthly daily maximum
J52: A4 | K52: Jan | L52: N/A | M52: N/A | N52: N/A | O52: N/A
K53: Feb | L53: N/A | M53: N/A | N53: N/A | O53: N/A
K54: Mar | L54: N/A | M54: N/A | N54: N/A | O54: N/A
K55: Apr | L55: N/A | M55: N/A | N55: N/A | O55: N/A
K56: May | L56: N/A | M56: N/A | N56: N/A | O56: N/A
K57: Jun | L57: N/A | M57: N/A | N57: N/A | O57: N/A
K58: Jul | L58: N/A | M58: N/A | N58: N/A | O58: N/A
K59: Aug | L59: N/A | M59: N/A | N59: N/A | O59: N/A
K60: Sep | L60: N/A | M60: N/A | N60: N/A | O60: N/A
K61: Oct | L61: N/A | M61: N/A | N61: N/A | O61: N/A
K62: Nov | L62: N/A | M62: N/A | N62: N/A | O62: N/A
K63: Dec | L63: N/A | M63: N/A | N63: N/A | O63: N/A
K64: Annual | L64: =AVERAGE(L52:L63) ->  | M64: =MAX(M52:M63) -> 0 | N64: =AVERAGE(N52:N63) ->  | O64: =MAX(O52:O63) -> 0
J66: =+A6 -> 2020 | K66: mg/Nm3 | L66: Monthly 1/2 hourly mean | M66: Monthly 1/2 hourly maximum | N66: Monthly daily mean | O66: Monthly daily maximum
J67: A5 | K67: Jan | L67: N/A | M67: N/A | N67: N/A | O67: N/A
K68: Feb | L68: N/A | M68: N/A | N68: N/A | O68: N/A
K69: Mar | L69: N/A | M69: N/A | N69: N/A | O69: N/A
K70: Apr | L70: N/A | M70: N/A | N70: N/A | O70: N/A
K71: May | L71: N/A | M71: N/A | N71: N/A | O71: N/A
K72: Jun | L72: N/A | M72: N/A | N72: N/A | O72: N/A
K73: Jul | L73: N/A | M73: N/A | N73: N/A | O73: N/A
K74: Aug | L74: N/A | M74: N/A | N74: N/A | O74: N/A
K75: Sep | L75: N/A | M75: N/A | N75: N/A | O75: N/A
K76: Oct | L76: N/A | M76: N/A | N76: N/A | O76: N/A
K77: Nov | L77: N/A | M77: N/A | N77: N/A | O77: N/A
K78: Dec | L78: N/A | M78: N/A | N78: N/A | O78: N/A
K79: Annual | L79: =AVERAGE(L67:L78) ->  | M79: =MAX(M67:M78) -> 0 | N79: =AVERAGE(N67:N78) ->  | O79: =MAX(O67:O78) -> 0

Sheet SO2
A1: =+'Cover Page'!$B$29 -> Annual Performance Report 2020 | E1: =+'Cover Page'!$B$33 -> Peterborough Energy Recovery Facility
A3: Monitoring of Sulphur dioxide emissions | D3: Whole Installation | G3: See Notes in Cell Q3 | J3: =+A3 -> Monitoring of Sulphur dioxide emissions | N3: Per Combustion Line | Q3: Notes:
Q4: User to add logic to complete Whole installation, Table A5:G18. From the data in Per Combustion Line, Table J6:O79, subject to No. of lines installed
A5: mg/Nm3 | B5: 1/2 Hourly Reference Periods | E5: Daily Reference Periods
A6: =+'Cover Page'!C39 -> 2020 | B6: 1/2 hourly SO2 ELV | C6: Monthly 1/2 hourly mean | D6: Highest 1/2 hourly maximum | E6: Daily SO2 ELV | F6: Monthly daily mean | G6: Highest daily maximum | J6: =+A6 -> 2020 | K6: mg/Nm3 | L6: Monthly 1/2 hourly mean | M6: Monthly 1/2 hourly maximum | N6: Monthly daily mean | O6: Monthly daily maximum
A7: Jan | B7: 200 | C7: =L7 -> 8.3 | D7: =M7 -> 35.9 | E7: 50 | F7: =N7 -> 8.33 | G7: =O7 -> 12.7 | J7: A1 | K7: Jan | L7: 8.3 | M7: 35.9 | N7: 8.33 | O7: 12.7
A8: Feb | B8: 200 | C8: =L8 -> 9.7 | D8: =M8 -> 83.8 | E8: 50 | F8: =N8 -> 8.7 | G8: =O8 -> 17.8 | K8: Feb | L8: 9.7 | M8: 83.8 | N8: 8.7 | O8: 17.8
A9: Mar | B9: 200 | C9: 10.9 | D9: 63.8 | E9: 50 | F9: 10.95 | G9: 18.2 | K9: Mar | L9: 10.9 | M9: 63.8 | N9: 10.95 | O9: 18.2 | Q9: Whole Installation table A5:G18:
A10: Apr | B10: 200 | C10: 21.9 | D10: 83.2 | E10: 50 | F10: 22 | G10: 38.1 | K10: Apr | L10: 21.9 | M10: 83.2 | N10: 22 | O10: 38.1 | Q10: Mean: for 1/2 hourly and daily periods calculate mean of values across all operational combustion lines for the month
A11: May | B11: 200 | C11: 18.1 | D11: 48.4 | E11: 50 | F11: 18.28 | G11: 23.8 | K11: May | L11: 18.1 | M11: 48.4 | N11: 18.28 | O11: 23.8
A12: Jun | B12: 200 | C12: 15.8 | D12: 85.2 | E12: 50 | F12: 15.9 | G12: 30.2 | K12: Jun | L12: 15.8 | M12: 85.2 | N12: 15.9 | O12: 30.2
A13: Jul | B13: 200 | C13: 11.6 | D13: 65.3 | E13: 50 | F13: 11.65 | G13: 23 | K13: Jul | L13: 11.6 | M13: 65.3 | N13: 11.65 | O13: 23 | Q13: Maximum: for 1/2 hourly and daily periods use the highest value across all operational combustion lines for the month
A14: Aug | B14: 200 | C14: 10.7 | D14: 86.1 | E14: 50 | F14: 10.73 | G14: 16.1 | K14: Aug | L14: 10.7 | M14: 86.1 | N14: 10.73 | O14: 16.1
A15: Sep | B15: 200 | C15: 11.1 | D15: 94.8 | E15: 50 | F15: 11.11 | G15: 22 | K15: Sep | L15: 11.1 | M15: 94.8 | N15: 11.11 | O15: 22
A16: Oct | B16: 200 | C16: 11.1 | D16: 127.9 | E16: 50 | F16: 11.23 | G16: 27.4 | K16: Oct | L16: 11.1 | M16: 127.9 | N16: 11.23 | O16: 27.4
A17: Nov | B17: 200 | C17: 11.9 | D17: 50.9 | E17: 50 | F17: 11.83 | G17: 18.7 | K17: Nov | L17: 11.9 | M17: 50.9 | N17: 11.83 | O17: 18.7
A18: Dec | B18: 200 | C18: 12.6 | D18: 95.7 | E18: 50 | F18: 12.61 | G18: 28.5 | K18: Dec | L18: 12.6 | M18: 95.7 | N18: 12.61 | O18: 28.5
K19: Annual | L19: =AVERAGE(L7:L18) -> 12.80833333 | M19: =MAX(M7:M18) -> 127.9 | N19: =AVERAGE(N7:N18) -> 12.77666667 | O19: =MAX(O7:O18) -> 38.1
J21: =+A6 -> 2020 | K21: mg/Nm3 | L21: Monthly 1/2 hourly mean | M21: Monthly 1/2 hourly maximum | N21: Monthly daily mean | O21: Monthly daily maximum
J22: A2 | K22: Jan | L22: N/A | M22: N/A | N22: N/A | O22: N/A
K23: Feb | L23: N/A | M23: N/A | N23: N/A | O23: N/A
K24: Mar | L24: N/A | M24: N/A | N24: N/A | O24: N/A
K25: Apr | L25: N/A | M25: N/A | N25: N/A | O25: N/A
K26: May | L26: N/A | M26: N/A | N26: N/A | O26: N/A
K27: Jun | L27: N/A | M27: N/A | N27: N/A | O27: N/A
K28: Jul | L28: N/A | M28: N/A | N28: N/A | O28: N/A
K29: Aug | L29: N/A | M29: N/A | N29: N/A | O29: N/A
K30: Sep | L30: N/A | M30: N/A | N30: N/A | O30: N/A
K31: Oct | L31: N/A | M31: N/A | N31: N/A | O31: N/A
K32: Nov | L32: N/A | M32: N/A | N32: N/A | O32: N/A
K33: Dec | L33: N/A | M33: N/A | N33: N/A | O33: N/A
K34: Annual | L34: =AVERAGE(L22:L33) ->  | M34: =MAX(M22:M33) -> 0 | N34: =AVERAGE(N22:N33) ->  | O34: =MAX(O22:O33) -> 0
J36: =+A6 -> 2020 | K36: mg/Nm3 | L36: Monthly 1/2 hourly mean | M36: Monthly 1/2 hourly maximum | N36: Monthly daily mean | O36: Monthly daily maximum
J37: A3 | K37: Jan | L37: N/A | M37: N/A | N37: N/A | O37: N/A
K38: Feb | L38: N/A | M38: N/A | N38: N/A | O38: N/A
K39: Mar | L39: N/A | M39: N/A | N39: N/A | O39: N/A
K40: Apr | L40: N/A | M40: N/A | N40: N/A | O40: N/A
K41: May | L41: N/A | M41: N/A | N41: N/A | O41: N/A
K42: Jun | L42: N/A | M42: N/A | N42: N/A | O42: N/A
C43: 01733 465284 | K43: Jul | L43: N/A | M43: N/A | N43: N/A | O43: N/A
K44: Aug | L44: N/A | M44: N/A | N44: N/A | O44: N/A
C45: kgoldacre@viridor.co.uk | K45: Sep | L45: N/A | M45: N/A | N45: N/A | O45: N/A
K46: Oct | L46: N/A | M46: N/A | N46: N/A | O46: N/A
K47: Nov | L47: N/A | M47: N/A | N47: N/A | O47: N/A
A48: Comments : | K48: Dec | L48: N/A | M48: N/A | N48: N/A | O48: N/A
K49: Annual | L49: =AVERAGE(L37:L48) ->  | M49: =MAX(M37:M48) -> 0 | N49: =AVERAGE(N37:N48) ->  | O49: =MAX(O37:O48) -> 0
J51: =+A6 -> 2020 | K51: mg/Nm3 | L51: Monthly 1/2 hourly mean | M51: Monthly 1/2 hourly maximum | N51: Monthly daily mean | O51: Monthly daily maximum
J52: A4 | K52: Jan | L52: N/A | M52: N/A | N52: N/A | O52: N/A
K53: Feb | L53: N/A | M53: N/A | N53: N/A | O53: N/A
K54: Mar | L54: N/A | M54: N/A | N54: N/A | O54: N/A
K55: Apr | L55: N/A | M55: N/A | N55: N/A | O55: N/A
K56: May | L56: N/A | M56: N/A | N56: N/A | O56: N/A
K57: Jun | L57: N/A | M57: N/A | N57: N/A | O57: N/A
K58: Jul | L58: N/A | M58: N/A | N58: N/A | O58: N/A
K59: Aug | L59: N/A | M59: N/A | N59: N/A | O59: N/A
K60: Sep | L60: N/A | M60: N/A | N60: N/A | O60: N/A
K61: Oct | L61: N/A | M61: N/A | N61: N/A | O61: N/A
K62: Nov | L62: N/A | M62: N/A | N62: N/A | O62: N/A
K63: Dec | L63: N/A | M63: N/A | N63: N/A | O63: N/A
K64: Annual | L64: =AVERAGE(L52:L63) ->  | M64: =MAX(M52:M63) -> 0 | N64: =AVERAGE(N52:N63) ->  | O64: =MAX(O52:O63) -> 0
J66: =+A6 -> 2020 | K66: mg/Nm3 | L66: Monthly 1/2 hourly mean | M66: Monthly 1/2 hourly maximum | N66: Monthly daily mean | O66: Monthly daily maximum
J67: A5 | K67: Jan | L67: N/A | M67: N/A | N67: N/A | O67: N/A
K68: Feb | L68: N/A | M68: N/A | N68: N/A | O68: N/A
K69: Mar | L69: N/A | M69: N/A | N69: N/A | O69: N/A
K70: Apr | L70: N/A | M70: N/A | N70: N/A | O70: N/A
K71: May | L71: N/A | M71: N/A | N71: N/A | O71: N/A
K72: Jun | L72: N/A | M72: N/A | N72: N/A | O72: N/A
K73: Jul | L73: N/A | M73: N/A | N73: N/A | O73: N/A
K74: Aug | L74: N/A | M74: N/A | N74: N/A | O74: N/A
K75: Sep | L75: N/A | M75: N/A | N75: N/A | O75: N/A
K76: Oct | L76: N/A | M76: N/A | N76: N/A | O76: N/A
K77: Nov | L77: N/A | M77: N/A | N77: N/A | O77: N/A
K78: Dec | L78: N/A | M78: N/A | N78: N/A | O78: N/A
K79: Annual | L79: =AVERAGE(L67:L78) ->  | M79: =MAX(M67:M78) -> 0 | N79: =AVERAGE(N67:N78) ->  | O79: =MAX(O67:O78) -> 0

Sheet NOx
A1: =+'Cover Page'!$B$29 -> Annual Performance Report 2020 | E1: =+'Cover Page'!$B$33 -> Peterborough Energy Recovery Facility
A3: Monitoring of Oxides of Nitrogen emissions | D3: Whole Installation | G3: See Notes in Cell Q3 | J3: =+A3 -> Monitoring of Oxides of Nitrogen emissions | N3: Per Combustion Line | Q3: Notes:
Q4: User to add logic to complete Whole installation, Table A5:G18. From the data in Per Combustion Line, Table J6:O79, subject to No. of lines installed
A5: mg/Nm3 | B5: 1/2 Hourly Reference Periods | E5: Daily Reference Periods
A6: =+'Cover Page'!C39 -> 2020 | B6: 1/2 hourly NOx ELV | C6: Monthly 1/2 hourly mean | D6: Highest 1/2 hourly maximum | E6: Daily NOx ELV | F6: Monthly daily mean | G6: Highest daily maximum | J6: =+A6 -> 2020 | K6: mg/Nm3 | L6: Monthly 1/2 hourly mean | M6: Monthly 1/2 hourly maximum | N6: Monthly daily mean | O6: Monthly daily maximum
A7: Jan | B7: 400 | C7: =L7 -> 119.4 | D7: =M7 -> 184.4 | E7: 150 | F7: =N7 -> 119.44 | G7: =O7 -> 127.8 | J7: A1 | K7: Jan | L7: 119.4 | M7: 184.4 | N7: 119.44 | O7: 127.8
A8: Feb | B8: 400 | C8: =L8 -> 115.2 | D8: =M8 -> 150.4 | E8: 150 | F8: =N8 -> 116.04 | G8: =O8 -> 118.6 | K8: Feb | L8: 115.2 | M8: 150.4 | N8: 116.04 | O8: 118.6
A9: Mar | B9: 400 | C9: 112.3 | D9: 141.5 | E9: 150 | F9: 114.16 | G9: 117.4 | K9: Mar | L9: 112.3 | M9: 141.5 | N9: 114.16 | O9: 117.4 | Q9: Whole Installation table A5:G18:
A10: Apr | B10: 400 | C10: 113.5 | D10: 128.7 | E10: 150 | F10: 114.3 | G10: 116.1 | K10: Apr | L10: 113.5 | M10: 128.7 | N10: 114.3 | O10: 116.1 | Q10: Mean: for 1/2 hourly and daily periods calculate mean of values across all operational combustion lines for the month
A11: May | B11: 400 | C11: 111.9 | D11: 157 | E11: 150 | F11: 112.14 | G11: 117.6 | K11: May | L11: 111.9 | M11: 157 | N11: 112.14 | O11: 117.6
A12: Jun | B12: 400 | C12: 114.9 | D12: 124.9 | E12: 150 | F12: 114.9 | G12: 116.2 | K12: Jun | L12: 114.9 | M12: 124.9 | N12: 114.9 | O12: 116.2
A13: Jul | B13: 400 | C13: 115.1 | D13: 129.2 | E13: 150 | F13: 115.11 | G13: 116.2 | K13: Jul | L13: 115.1 | M13: 129.2 | N13: 115.11 | O13: 116.2 | Q13: Maximum: for 1/2 hourly and daily periods use the highest value across all operational combustion lines for the month
A14: Aug | B14: 400 | C14: 114.8 | D14: 126.1 | E14: 150 | F14: 114.77 | G14: 116.2 | K14: Aug | L14: 114.8 | M14: 126.1 | N14: 114.77 | O14: 116.2
A15: Sep | B15: 400 | C15: 110.9 | D15: 129.7 | E15: 150 | F15: 110.88 | G15: 116 | K15: Sep | L15: 110.9 | M15: 129.7 | N15: 110.88 | O15: 116
A16: Oct | B16: 400 | C16: 114.8 | D16: 131 | E16: 150 | F16: 114.9 | G16: 116.1 | K16: Oct | L16: 114.8 | M16: 131 | N16: 114.9 | O16: 116.1
A17: Nov | B17: 400 | C17: 115.8 | D17: 145.7 | E17: 150 | F17: 115.8 | G17: 117.1 | K17: Nov | L17: 115.8 | M17: 145.7 | N17: 115.8 | O17: 117.1
A18: Dec | B18: 400 | C18: 113.9 | D18: 127 | E18: 150 | F18: 114.36 | G18: 116.2 | K18: Dec | L18: 113.9 | M18: 127 | N18: 114.36 | O18: 116.2
K19: Annual | L19: =AVERAGE(L7:L18) -> 114.375 | M19: =MAX(M7:M18) -> 184.4 | N19: =AVERAGE(N7:N18) -> 114.7333333 | O19: =MAX(O7:O18) -> 127.8
J21: =+A6 -> 2020 | K21: mg/Nm3 | L21: Monthly 1/2 hourly mean | M21: Monthly 1/2 hourly maximum | N21: Monthly daily mean | O21: Monthly daily maximum
J22: A2 | K22: Jan | L22: N/A | M22: N/A | N22: N/A | O22: N/A
K23: Feb | L23: N/A | M23: N/A | N23: N/A | O23: N/A
K24: Mar | L24: N/A | M24: N/A | N24: N/A | O24: N/A
K25: Apr | L25: N/A | M25: N/A | N25: N/A | O25: N/A
K26: May | L26: N/A | M26: N/A | N26: N/A | O26: N/A
K27: Jun | L27: N/A | M27: N/A | N27: N/A | O27: N/A
K28: Jul | L28: N/A | M28: N/A | N28: N/A | O28: N/A
K29: Aug | L29: N/A | M29: N/A | N29: N/A | O29: N/A
K30: Sep | L30: N/A | M30: N/A | N30: N/A | O30: N/A
K31: Oct | L31: N/A | M31: N/A | N31: N/A | O31: N/A
K32: Nov | L32: N/A | M32: N/A | N32: N/A | O32: N/A
K33: Dec | L33: N/A | M33: N/A | N33: N/A | O33: N/A
K34: Annual | L34: =AVERAGE(L22:L33) ->  | M34: =MAX(M22:M33) -> 0 | N34: =AVERAGE(N22:N33) ->  | O34: =MAX(O22:O33) -> 0
J36: =+A6 -> 2020 | K36: mg/Nm3 | L36: Monthly 1/2 hourly mean | M36: Monthly 1/2 hourly maximum | N36: Monthly daily mean | O36: Monthly daily maximum
J37: A3 | K37: Jan | L37: N/A | M37: N/A | N37: N/A | O37: N/A
K38: Feb | L38: N/A | M38: N/A | N38: N/A | O38: N/A
K39: Mar | L39: N/A | M39: N/A | N39: N/A | O39: N/A
K40: Apr | L40: N/A | M40: N/A | N40: N/A | O40: N/A
K41: May | L41: N/A | M41: N/A | N41: N/A | O41: N/A
K42: Jun | L42: N/A | M42: N/A | N42: N/A | O42: N/A
C43: 01733 465284 | K43: Jul | L43: N/A | M43: N/A | N43: N/A | O43: N/A
K44: Aug | L44: N/A | M44: N/A | N44: N/A | O44: N/A
C45: kgoldacre@viridor.co.uk | K45: Sep | L45: N/A | M45: N/A | N45: N/A | O45: N/A
K46: Oct | L46: N/A | M46: N/A | N46: N/A | O46: N/A
K47: Nov | L47: N/A | M47: N/A | N47: N/A | O47: N/A
A48: Comments : | K48: Dec | L48: N/A | M48: N/A | N48: N/A | O48: N/A
A49: NOTE: Site has a daily ELV of 150mg/Nm3 (rather than the IED standard of 200mg/Nm3) | K49: Annual | L49: =AVERAGE(L37:L48) ->  | M49: =MAX(M37:M48) -> 0 | N49: =AVERAGE(N37:N48) ->  | O49: =MAX(O37:O48) -> 0
J51: =+A6 -> 2020 | K51: mg/Nm3 | L51: Monthly 1/2 hourly mean | M51: Monthly 1/2 hourly maximum | N51: Monthly daily mean | O51: Monthly daily maximum
J52: A4 | K52: Jan | L52: N/A | M52: N/A | N52: N/A | O52: N/A
K53: Feb | L53: N/A | M53: N/A | N53: N/A | O53: N/A
K54: Mar | L54: N/A | M54: N/A | N54: N/A | O54: N/A
K55: Apr | L55: N/A | M55: N/A | N55: N/A | O55: N/A
K56: May | L56: N/A | M56: N/A | N56: N/A | O56: N/A
K57: Jun | L57: N/A | M57: N/A | N57: N/A | O57: N/A
K58: Jul | L58: N/A | M58: N/A | N58: N/A | O58: N/A
K59: Aug | L59: N/A | M59: N/A | N59: N/A | O59: N/A
K60: Sep | L60: N/A | M60: N/A | N60: N/A | O60: N/A
K61: Oct | L61: N/A | M61: N/A | N61: N/A | O61: N/A
K62: Nov | L62: N/A | M62: N/A | N62: N/A | O62: N/A
K63: Dec | L63: N/A | M63: N/A | N63: N/A | O63: N/A
K64: Annual | L64: =AVERAGE(L52:L63) ->  | M64: =MAX(M52:M63) -> 0 | N64: =AVERAGE(N52:N63) ->  | O64: =MAX(O52:O63) -> 0
J66: =+A6 -> 2020 | K66: mg/Nm3 | L66: Monthly 1/2 hourly mean | M66: Monthly 1/2 hourly maximum | N66: Monthly daily mean | O66: Monthly daily maximum
J67: A5 | K67: Jan | L67: N/A | M67: N/A | N67: N/A | O67: N/A
K68: Feb | L68: N/A | M68: N/A | N68: N/A | O68: N/A
K69: Mar | L69: N/A | M69: N/A | N69: N/A | O69: N/A
K70: Apr | L70: N/A | M70: N/A | N70: N/A | O70: N/A
K71: May | L71: N/A | M71: N/A | N71: N/A | O71: N/A
K72: Jun | L72: N/A | M72: N/A | N72: N/A | O72: N/A
K73: Jul | L73: N/A | M73: N/A | N73: N/A | O73: N/A
K74: Aug | L74: N/A | M74: N/A | N74: N/A | O74: N/A
K75: Sep | L75: N/A | M75: N/A | N75: N/A | O75: N/A
K76: Oct | L76: N/A | M76: N/A | N76: N/A | O76: N/A
K77: Nov | L77: N/A | M77: N/A | N77: N/A | O77: N/A
K78: Dec | L78: N/A | M78: N/A | N78: N/A | O78: N/A
K79: Annual | L79: =AVERAGE(L67:L78) ->  | M79: =MAX(M67:M78) -> 0 | N79: =AVERAGE(N67:N78) ->  | O79: =MAX(O67:O78) -> 0

Sheet TOC
A1: =+'Cover Page'!$B$29 -> Annual Performance Report 2020 | E1: =+'Cover Page'!$B$33 -> Peterborough Energy Recovery Facility
A3: Monitoring of Total organic carbon emissions | D3: Whole Installation | G3: See Notes in Cell Q3 | J3: =+A3 -> Monitoring of Total organic carbon emissions | N3: Per Combustion Line | Q3: Notes:
Q4: User to add logic to complete Whole installation, Table A5:G18. From the data in Per Combustion Line, Table J6:O79, subject to No. of lines installed
A5: mg/Nm3 | B5: 1/2 Hourly Reference Periods | E5: Daily Reference Periods
A6: =+'Cover Page'!C39 -> 2020 | B6: 1/2 hourly TOC ELV | C6: Monthly 1/2 hourly mean | D6: Highest 1/2 hourly maximum | E6: Daily TOC ELV | F6: Monthly daily mean | G6: Highest daily maximum | J6: =+A6 -> 2020 | K6: mg/Nm3 | L6: Monthly 1/2 hourly mean | M6: Monthly 1/2 hourly maximum | N6: Monthly daily mean | O6: Monthly daily maximum
A7: Jan | B7: 20 | C7: =L7 -> 0 | D7: =M7 -> 0.2 | E7: 10 | F7: =N7 -> 0 | G7: =O7 -> 0 | J7: A1 | K7: Jan | L7: 0 | M7: 0.2 | N7: 0 | O7: 0
A8: Feb | B8: 20 | C8: =L8 -> 0.02 | D8: =M8 -> 2.4 | E8: 10 | F8: =N8 -> 0.02 | G8: =O8 -> 0.3 | K8: Feb | L8: 0.02 | M8: 2.4 | N8: 0.02 | O8: 0.3
A9: Mar | B9: 20 | C9: 0.04 | D9: 55.7 | E9: 10 | F9: 0.04 | G9: 1.3 | K9: Mar | L9: 0.04 | M9: 55.7 | N9: 0.04 | O9: 1.3 | Q9: Whole Installation table A5:G18:
A10: Apr | B10: 20 | C10: 0.01 | D10: 6.6 | E10: 10 | F10: 0.01 | G10: 0.1 | K10: Apr | L10: 0.01 | M10: 6.6 | N10: 0.01 | O10: 0.1 | Q10: Mean: for 1/2 hourly and daily periods calculate mean of values across all operational combustion lines for the month
A11: May | B11: 20 | C11: 0.006 | D11: 0.7 | E11: 10 | F11: 0.006 | G11: 0.1 | K11: May | L11: 0.006 | M11: 0.7 | N11: 0.006 | O11: 0.1
A12: Jun | B12: 20 | C12: 0.07 | D12: 21.9 | E12: 10 | F12: 0.07 | G12: 0.5 | K12: Jun | L12: 0.07 | M12: 21.9 | N12: 0.07 | O12: 0.5
A13: Jul | B13: 20 | C13: 0.1 | D13: 19.6 | E13: 10 | F13: 0.053 | G13: 1.2 | K13: Jul | L13: 0.1 | M13: 19.6 | N13: 0.053 | O13: 1.2 | Q13: Maximum: for 1/2 hourly and daily periods use the highest value across all operational combustion lines for the month
A14: Aug | B14: 20 | C14: 0.013 | D14: 10.2 | E14: 10 | F14: 0.013 | G14: 0.2 | K14: Aug | L14: 0.013 | M14: 10.2 | N14: 0.013 | O14: 0.2
A15: Sep | B15: 20 | C15: 0.023 | D15: 2.4 | E15: 10 | F15: 0.023 | G15: 0.4 | K15: Sep | L15: 0.023 | M15: 2.4 | N15: 0.023 | O15: 0.4
A16: Oct | B16: 20 | C16: 0 | D16: 0.3 | E16: 10 | F16: 0 | G16: 0 | K16: Oct | L16: 0 | M16: 0.3 | N16: 0 | O16: 0
A17: Nov | B17: 20 | C17: 0.007 | D17: 1 | E17: 10 | F17: 0.007 | G17: 0.2 | K17: Nov | L17: 0.007 | M17: 1 | N17: 0.007 | O17: 0.2
A18: Dec | B18: 20 | C18: 0.01 | D18: 3.5 | E18: 10 | F18: 0.01 | G18: 0.2 | K18: Dec | L18: 0.01 | M18: 3.5 | N18: 0.01 | O18: 0.2
K19: Annual | L19: =AVERAGE(L7:L18) -> 0.02491666667 | M19: =MAX(M7:M18) -> 55.7 | N19: =AVERAGE(N7:N18) -> 0.021 | O19: =MAX(O7:O18) -> 1.3
J21: =+A6 -> 2020 | K21: mg/Nm3 | L21: Monthly 1/2 hourly mean | M21: Monthly 1/2 hourly maximum | N21: Monthly daily mean | O21: Monthly daily maximum
J22: A2 | K22: Jan | L22: N/A | M22: N/A | N22: N/A | O22: N/A
K23: Feb | L23: N/A | M23: N/A | N23: N/A | O23: N/A
K24: Mar | L24: N/A | M24: N/A | N24: N/A | O24: N/A
K25: Apr | L25: N/A | M25: N/A | N25: N/A | O25: N/A
K26: May | L26: N/A | M26: N/A | N26: N/A | O26: N/A
K27: Jun | L27: N/A | M27: N/A | N27: N/A | O27: N/A
K28: Jul | L28: N/A | M28: N/A | N28: N/A | O28: N/A
K29: Aug | L29: N/A | M29: N/A | N29: N/A | O29: N/A
K30: Sep | L30: N/A | M30: N/A | N30: N/A | O30: N/A
K31: Oct | L31: N/A | M31: N/A | N31: N/A | O31: N/A
K32: Nov | L32: N/A | M32: N/A | N32: N/A | O32: N/A
K33: Dec | L33: N/A | M33: N/A | N33: N/A | O33: N/A
K34: Annual | L34: =AVERAGE(L22:L33) ->  | M34: =MAX(M22:M33) -> 0 | N34: =AVERAGE(N22:N33) ->  | O34: =MAX(O22:O33) -> 0
J36: =+A6 -> 2020 | K36: mg/Nm3 | L36: Monthly 1/2 hourly mean | M36: Monthly 1/2 hourly maximum | N36: Monthly daily mean | O36: Monthly daily maximum
J37: A3 | K37: Jan | L37: N/A | M37: N/A | N37: N/A | O37: N/A
K38: Feb | L38: N/A | M38: N/A | N38: N/A | O38: N/A
K39: Mar | L39: N/A | M39: N/A | N39: N/A | O39: N/A
K40: Apr | L40: N/A | M40: N/A | N40: N/A | O40: N/A
K41: May | L41: N/A | M41: N/A | N41: N/A | O41: N/A
K42: Jun | L42: N/A | M42: N/A | N42: N/A | O42: N/A
C43: 01733 465284 | K43: Jul | L43: N/A | M43: N/A | N43: N/A | O43: N/A
K44: Aug | L44: N/A | M44: N/A | N44: N/A | O44: N/A
C45: kgoldacre@viridor.co.uk | K45: Sep | L45: N/A | M45: N/A | N45: N/A | O45: N/A
K46: Oct | L46: N/A | M46: N/A | N46: N/A | O46: N/A
K47: Nov | L47: N/A | M47: N/A | N47: N/A | O47: N/A
A48: Comments : | K48: Dec | L48: N/A | M48: N/A | N48: N/A | O48: N/A
A49: 31st March 2020 - TOC - one half hour 55.7mg/Nm3 - Schedule 5 duly submitted. 3rd June 2020 - TOC - one half hour 21.9mg/Nm3 - Schedule 5 duly submitted. | K49: Annual | L49: =AVERAGE(L37:L48) ->  | M49: =MAX(M37:M48) -> 0 | N49: =AVERAGE(N37:N48) ->  | O49: =MAX(O37:O48) -> 0
J51: =+A6 -> 2020 | K51: mg/Nm3 | L51: Monthly 1/2 hourly mean | M51: Monthly 1/2 hourly maximum | N51: Monthly daily mean | O51: Monthly daily maximum
J52: A4 | K52: Jan | L52: N/A | M52: N/A | N52: N/A | O52: N/A
K53: Feb | L53: N/A | M53: N/A | N53: N/A | O53: N/A
K54: Mar | L54: N/A | M54: N/A | N54: N/A | O54: N/A
K55: Apr | L55: N/A | M55: N/A | N55: N/A | O55: N/A
K56: May | L56: N/A | M56: N/A | N56: N/A | O56: N/A
K57: Jun | L57: N/A | M57: N/A | N57: N/A | O57: N/A
K58: Jul | L58: N/A | M58: N/A | N58: N/A | O58: N/A
K59: Aug | L59: N/A | M59: N/A | N59: N/A | O59: N/A
K60: Sep | L60: N/A | M60: N/A | N60: N/A | O60: N/A
K61: Oct | L61: N/A | M61: N/A | N61: N/A | O61: N/A
K62: Nov | L62: N/A | M62: N/A | N62: N/A | O62: N/A
K63: Dec | L63: N/A | M63: N/A | N63: N/A | O63: N/A
K64: Annual | L64: =AVERAGE(L52:L63) ->  | M64: =MAX(M52:M63) -> 0 | N64: =AVERAGE(N52:N63) ->  | O64: =MAX(O52:O63) -> 0
J66: =+A6 -> 2020 | K66: mg/Nm3 | L66: Monthly 1/2 hourly mean | M66: Monthly 1/2 hourly maximum | N66: Monthly daily mean | O66: Monthly daily maximum
J67: A5 | K67: Jan | L67: N/A | M67: N/A | N67: N/A | O67: N/A
K68: Feb | L68: N/A | M68: N/A | N68: N/A | O68: N/A
K69: Mar | L69: N/A | M69: N/A | N69: N/A | O69: N/A
K70: Apr | L70: N/A | M70: N/A | N70: N/A | O70: N/A
K71: May | L71: N/A | M71: N/A | N71: N/A | O71: N/A
K72: Jun | L72: N/A | M72: N/A | N72: N/A | O72: N/A
K73: Jul | L73: N/A | M73: N/A | N73: N/A | O73: N/A
K74: Aug | L74: N/A | M74: N/A | N74: N/A | O74: N/A
K75: Sep | L75: N/A | M75: N/A | N75: N/A | O75: N/A
K76: Oct | L76: N/A | M76: N/A | N76: N/A | O76: N/A
K77: Nov | L77: N/A | M77: N/A | N77: N/A | O77: N/A
K78: Dec | L78: N/A | M78: N/A | N78: N/A | O78: N/A
K79: Annual | L79: =AVERAGE(L67:L78) ->  | M79: =MAX(M67:M78) -> 0 | N79: =AVERAGE(N67:N78) ->  | O79: =MAX(O67:O78) -> 0

Sheet Particulates
A1: =+'Cover Page'!$B$29 -> Annual Performance Report 2020 | E1: =+'Cover Page'!$B$33 -> Peterborough Energy Recovery Facility
A3: Monitoring of Particulate matter emissions | D3: Whole Installation | G3: See Notes in Cell Q3 | J3: =+A3 -> Monitoring of Particulate matter emissions | N3: Per Combustion Line | Q3: Notes:
Q4: User to add logic to complete Whole installation, Table A5:G18. From the data in Per Combustion Line, Table J6:O79, subject to No. of lines installed
A5: mg/Nm3 | B5: 1/2 Hourly Reference Periods | E5: Daily Reference Periods
A6: =+'Cover Page'!C39 -> 2020 | B6: 1/2 hourly PM ELV | C6: Monthly 1/2 hourly mean | D6: Highest 1/2 hourly maximum | E6: Daily PM ELV | F6: Monthly daily mean | G6: Highest daily maximum | J6: =+A6 -> 2020 | K6: mg/Nm3 | L6: Monthly 1/2 hourly mean | M6: Monthly 1/2 hourly maximum | N6: Monthly daily mean | O6: Monthly daily maximum
A7: Jan | B7: 30 | C7: =L7 -> 0.2 | D7: =M7 -> 2.3 | E7: 10 | F7: =N7 -> 0.21 | G7: =O7 -> 1 | J7: A1 | K7: Jan | L7: 0.2 | M7: 2.3 | N7: 0.21 | O7: 1
A8: Feb | B8: 30 | C8: =L8 -> 0.5 | D8: =M8 -> 5.1 | E8: 10 | F8: =N8 -> 0.51 | G8: =O8 -> 1.7 | K8: Feb | L8: 0.5 | M8: 5.1 | N8: 0.51 | O8: 1.7
A9: Mar | B9: 30 | C9: 1.3 | D9: 6.4 | E9: 10 | F9: 1.33 | G9: 2.6 | K9: Mar | L9: 1.3 | M9: 6.4 | N9: 1.33 | O9: 2.6 | Q9: Whole Installation table A5:G18:
A10: Apr | B10: 30 | C10: 0.5 | D10: 151.9 | E10: 10 | F10: 0.49 | G10: 3.7 | K10: Apr | L10: 0.5 | M10: 151.9 | N10: 0.49 | O10: 3.7 | Q10: Mean: for 1/2 hourly and daily periods calculate mean of values across all operational combustion lines for the month
A11: May | B11: 30 | C11: 0.2 | D11: 10.6 | E11: 10 | F11: 0.14 | G11: 0.4 | K11: May | L11: 0.2 | M11: 10.6 | N11: 0.14 | O11: 0.4
A12: Jun | B12: 30 | C12: 0.1 | D12: 1.2 | E12: 10 | F12: 0.1 | G12: 0.5 | K12: Jun | L12: 0.1 | M12: 1.2 | N12: 0.1 | O12: 0.5
A13: Jul | B13: 30 | C13: 0.2 | D13: 1.6 | E13: 10 | F13: 0.2 | G13: 0.6 | K13: Jul | L13: 0.2 | M13: 1.6 | N13: 0.2 | O13: 0.6 | Q13: Maximum: for 1/2 hourly and daily periods use the highest value across all operational combustion lines for the month
A14: Aug | B14: 30 | C14: 0.4 | D14: 2.2 | E14: 10 | F14: 0.37 | G14: 0.8 | K14: Aug | L14: 0.4 | M14: 2.2 | N14: 0.37 | O14: 0.8
A15: Sep | B15: 30 | C15: 0.003 | D15: 0.9 | E15: 10 | F15: 0.003 | G15: 0.1 | K15: Sep | L15: 0.003 | M15: 0.9 | N15: 0.003 | O15: 0.1
A16: Oct | B16: 30 | C16: 0 | D16: 0.1 | E16: 10 | F16: 0 | G16: 0 | K16: Oct | L16: 0 | M16: 0.1 | N16: 0 | O16: 0
A17: Nov | B17: 30 | C17: 0 | D17: 0.1 | E17: 10 | F17: 0 | G17: 0 | K17: Nov | L17: 0 | M17: 0.1 | N17: 0 | O17: 0
A18: Dec | B18: 30 | C18: 0.1 | D18: 2.1 | E18: 10 | F18: 0.066 | G18: 0.4 | K18: Dec | L18: 0.1 | M18: 2.1 | N18: 0.066 | O18: 0.4
K19: Annual | L19: =AVERAGE(L7:L18) -> 0.2919166667 | M19: =MAX(M7:M18) -> 151.9 | N19: =AVERAGE(N7:N18) -> 0.2849166667 | O19: =MAX(O7:O18) -> 3.7
J21: =+A6 -> 2020 | K21: mg/Nm3 | L21: Monthly 1/2 hourly mean | M21: Monthly 1/2 hourly maximum | N21: Monthly daily mean | O21: Monthly daily maximum
J22: A2 | K22: Jan | L22: N/A | M22: N/A | N22: N/A | O22: N/A
K23: Feb | L23: N/A | M23: N/A | N23: N/A | O23: N/A
K24: Mar | L24: N/A | M24: N/A | N24: N/A | O24: N/A
K25: Apr | L25: N/A | M25: N/A | N25: N/A | O25: N/A
K26: May | L26: N/A | M26: N/A | N26: N/A | O26: N/A
K27: Jun | L27: N/A | M27: N/A | N27: N/A | O27: N/A
K28: Jul | L28: N/A | M28: N/A | N28: N/A | O28: N/A
K29: Aug | L29: N/A | M29: N/A | N29: N/A | O29: N/A
K30: Sep | L30: N/A | M30: N/A | N30: N/A | O30: N/A
K31: Oct | L31: N/A | M31: N/A | N31: N/A | O31: N/A
K32: Nov | L32: N/A | M32: N/A | N32: N/A | O32: N/A
K33: Dec | L33: N/A | M33: N/A | N33: N/A | O33: N/A
K34: Annual | L34: =AVERAGE(L22:L33) ->  | M34: =MAX(M22:M33) -> 0 | N34: =AVERAGE(N22:N33) ->  | O34: =MAX(O22:O33) -> 0
J36: =+A6 -> 2020 | K36: mg/Nm3 | L36: Monthly 1/2 hourly mean | M36: Monthly 1/2 hourly maximum | N36: Monthly daily mean | O36: Monthly daily maximum
J37: A3 | K37: Jan | L37: N/A | M37: N/A | N37: N/A | O37: N/A
K38: Feb | L38: N/A | M38: N/A | N38: N/A | O38: N/A
K39: Mar | L39: N/A | M39: N/A | N39: N/A | O39: N/A
K40: Apr | L40: N/A | M40: N/A | N40: N/A | O40: N/A
K41: May | L41: N/A | M41: N/A | N41: N/A | O41: N/A
K42: Jun | L42: N/A | M42: N/A | N42: N/A | O42: N/A
C43: 01733 465284 | K43: Jul | L43: N/A | M43: N/A | N43: N/A | O43: N/A
K44: Aug | L44: N/A | M44: N/A | N44: N/A | O44: N/A
C45: kgoldacre@viridor.co.uk | K45: Sep | L45: N/A | M45: N/A | N45: N/A | O45: N/A
K46: Oct | L46: N/A | M46: N/A | N46: N/A | O46: N/A
K47: Nov | L47: N/A | M47: N/A | N47: N/A | O47: N/A
A48: Comments : | K48: Dec | L48: N/A | M48: N/A | N48: N/A | O48: N/A
A49: Note 13th April half hour reading of 151.9 was an instrument error - reported - abnormal operations. The other in line instrument confirmed the actual reading from the combustion process as 0.1mg/Nm3. | K49: Annual | L49: =AVERAGE(L37:L48) ->  | M49: =MAX(M37:M48) -> 0 | N49: =AVERAGE(N37:N48) ->  | O49: =MAX(O37:O48) -> 0
J51: =+A6 -> 2020 | K51: mg/Nm3 | L51: Monthly 1/2 hourly mean | M51: Monthly 1/2 hourly maximum | N51: Monthly daily mean | O51: Monthly daily maximum
J52: A4 | K52: Jan | L52: N/A | M52: N/A | N52: N/A | O52: N/A
K53: Feb | L53: N/A | M53: N/A | N53: N/A | O53: N/A
K54: Mar | L54: N/A | M54: N/A | N54: N/A | O54: N/A
K55: Apr | L55: N/A | M55: N/A | N55: N/A | O55: N/A
K56: May | L56: N/A | M56: N/A | N56: N/A | O56: N/A
K57: Jun | L57: N/A | M57: N/A | N57: N/A | O57: N/A
K58: Jul | L58: N/A | M58: N/A | N58: N/A | O58: N/A
K59: Aug | L59: N/A | M59: N/A | N59: N/A | O59: N/A
K60: Sep | L60: N/A | M60: N/A | N60: N/A | O60: N/A
K61: Oct | L61: N/A | M61: N/A | N61: N/A | O61: N/A
K62: Nov | L62: N/A | M62: N/A | N62: N/A | O62: N/A
K63: Dec | L63: N/A | M63: N/A | N63: N/A | O63: N/A
K64: Annual | L64: =AVERAGE(L52:L63) ->  | M64: =MAX(M52:M63) -> 0 | N64: =AVERAGE(N52:N63) ->  | O64: =MAX(O52:O63) -> 0
J66: =+A6 -> 2020 | K66: mg/Nm3 | L66: Monthly 1/2 hourly mean | M66: Monthly 1/2 hourly maximum | N66: Monthly daily mean | O66: Monthly daily maximum
J67: A5 | K67: Jan | L67: N/A | M67: N/A | N67: N/A | O67: N/A
K68: Feb | L68: N/A | M68: N/A | N68: N/A | O68: N/A
K69: Mar | L69: N/A | M69: N/A | N69: N/A | O69: N/A
K70: Apr | L70: N/A | M70: N/A | N70: N/A | O70: N/A
K71: May | L71: N/A | M71: N/A | N71: N/A | O71: N/A
K72: Jun | L72: N/A | M72: N/A | N72: N/A | O72: N/A
K73: Jul | L73: N/A | M73: N/A | N73: N/A | O73: N/A
K74: Aug | L74: N/A | M74: N/A | N74: N/A | O74: N/A
K75: Sep | L75: N/A | M75: N/A | N75: N/A | O75: N/A
K76: Oct | L76: N/A | M76: N/A | N76: N/A | O76: N/A
K77: Nov | L77: N/A | M77: N/A | N77: N/A | O77: N/A
K78: Dec | L78: N/A | M78: N/A | N78: N/A | O78: N/A
K79: Annual | L79: =AVERAGE(L67:L78) ->  | M79: =MAX(M67:M78) -> 0 | N79: =AVERAGE(N67:N78) ->  | O79: =MAX(O67:O78) -> 0

Sheet CO 95% 10 min
A1: =+'Cover Page'!$B$29 -> Annual Performance Report 2020 | E1: =+'Cover Page'!$B$33 -> Peterborough Energy Recovery Facility
A3: Monitoring of Carbon Monoxide (10-minute avg) | E3: Whole Installation | H3: See Notes in Cell S3 | J3: =+A3 -> Monitoring of Carbon Monoxide (10-minute avg) | O3: Per Combustion Line | Q3: Notes: | S3: Notes:
S4: User to add logic to complete Whole installation, Table A5:H18. From the data in Per Combustion Line, Table K6:Q79, subject to No. of lines installed
A5: mg/Nm3 | B5: 10-minute Reference Periods | F5: Daily Reference Periods
A6: =+'Cover Page'!C39 -> 2020 | B6: 95%ile 10-min avg CO ELV | C6: 95%ile 10-min avg maximum | D6: Monthly CO 10-min avg mean | E6: 10-min avg maximum | F6: Daily CO ELV | G6: Monthly daily mean | H6: Highest daily maximum | K6: =+A6 -> 2020 | L6: mg/Nm3 | M6: 95%ile 10-min avg maximum | N6: Monthly CO 10-min avg mean | O6: 10-min avg maximum | P6: Monthly daily mean | Q6: Monthly daily maximum
A7: Jan | B7: 150 | C7: =M7 -> 0.7 | D7: =N7 -> 0.1 | E7: =O7 -> 9.9 | F7: 50 | G7: =P7 -> 0.14 | H7: =Q7 -> 0.3 | K7: A1 | L7: Jan | M7: 0.7 | N7: 0.1 | O7: 9.9 | P7: 0.14 | Q7: 0.3
A8: Feb | B8: =+B7 -> 150 | C8: =M8 -> 13 | D8: =N8 -> 0.3 | E8: =O8 -> 114.5 | F8: =+F7 -> 50 | G8: =P8 -> 0.28 | H8: =Q8 -> 2.4 | L8: Feb | M8: 13 | N8: 0.3 | O8: 114.5 | P8: 0.28 | Q8: 2.4
A9: Mar | B9: =+B8 -> 150 | C9: 0.7 | D9: 0.3 | E9: 237.7 | F9: =+F8 -> 50 | G9: 0.3 | H9: 1.9 | L9: Mar | M9: 0.7 | N9: 0.3 | O9: 237.7 | P9: 0.3 | Q9: 1.9 | S9: Whole Installation table A5:H18:
A10: Apr | B10: 150 | C10: 0.8 | D10: 0.2 | E10: 123.6 | F10: 50 | G10: 0.24 | H10: 1.2 | L10: Apr | M10: 0.8 | N10: 0.2 | O10: 123.6 | P10: 0.24 | Q10: 1.2 | S10: Mean: for 10-min and daily periods use average of all operational combustion lines.
A11: May | B11: 150 | C11: 0.7 | D11: 0.2 | E11: 8.4 | F11: 50 | G11: 0.18 | H11: 0.3 | L11: May | M11: 0.7 | N11: 0.2 | O11: 8.4 | P11: 0.18 | Q11: 0.3
A12: Jun | B12: 150 | C12: 3.7 | D12: 0.3 | E12: 40.5 | F12: 50 | G12: 0.27 | H12: 1.1 | L12: Jun | M12: 3.7 | N12: 0.3 | O12: 40.5 | P12: 0.27 | Q12: 1.1
A13: Jul | B13: 150 | C13: 12 | D13: 0.3 | E13: 19.9 | F13: 50 | G13: 0.28 | H13: 1.8 | L13: Jul | M13: 12 | N13: 0.3 | O13: 19.9 | P13: 0.28 | Q13: 1.8 | S13: Maximum: for 10-min and daily periods use the highest of all operational combustion lines in any month.
A14: Aug | B14: 150 | C14: 1.6 | D14: 0.3 | E14: 108.4 | F14: 50 | G14: 0.28 | H14: 1.5 | L14: Aug | M14: 1.6 | N14: 0.3 | O14: 108.4 | P14: 0.28 | Q14: 1.5
A15: Sep | B15: 150 | C15: 8.4 | D15: 0.3 | E15: 96.6 | F15: 50 | G15: 0.3 | H15: 1.5 | L15: Sep | M15: 8.4 | N15: 0.3 | O15: 96.6 | P15: 0.3 | Q15: 1.5
A16: Oct | B16: 150 | C16: 0.9 | D16: 0.3 | E16: 95.9 | F16: 50 | G16: 0.26 | H16: 0.9 | L16: Oct | M16: 0.9 | N16: 0.3 | O16: 95.9 | P16: 0.26 | Q16: 0.9
A17: Nov | B17: 150 | C17: 10.7 | D17: 0.3 | E17: 227 | F17: 50 | G17: 0.29 | H17: 2 | L17: Nov | M17: 10.7 | N17: 0.3 | O17: 227 | P17: 0.29 | Q17: 2
A18: Dec | B18: 150 | C18: 10.7 | D18: 0.3 | E18: 239.3 | F18: 50 | G18: 0.35 | H18: 2.1 | L18: Dec | M18: 10.7 | N18: 0.3 | O18: 239.3 | P18: 0.35 | Q18: 2.1
L19: Annual | M19: =MAX(M7:M18) -> 13 | N19: =AVERAGE(N7:N18) -> 0.2666666667 | O19: =MAX(O7:O18) -> 239.3 | P19: =AVERAGE(P7:P18) -> 0.2641666667 | Q19: =MAX(Q7:Q18) -> 2.4
K21: =+A6 -> 2020 | L21: mg/Nm3 | M21: 95%ile 10-min avg maximum | N21: Monthly CO 10-min avg mean | O21: 10-min avg maximum | P21: Monthly daily mean | Q21: Monthly daily maximum
K22: A2 | L22: Jan | M22: N/A | N22: N/A | O22: N/A | P22: N/A | Q22: N/A
L23: Feb | M23: N/A | N23: N/A | O23: N/A | P23: N/A | Q23: N/A
L24: Mar | M24: N/A | N24: N/A | O24: N/A | P24: N/A | Q24: N/A
L25: Apr | M25: N/A | N25: N/A | O25: N/A | P25: N/A | Q25: N/A
L26: May | M26: N/A | N26: N/A | O26: N/A | P26: N/A | Q26: N/A
L27: Jun | M27: N/A | N27: N/A | O27: N/A | P27: N/A | Q27: N/A
L28: Jul | M28: N/A | N28: N/A | O28: N/A | P28: N/A | Q28: N/A
L29: Aug | M29: N/A | N29: N/A | O29: N/A | P29: N/A | Q29: N/A
L30: Sep | M30: N/A | N30: N/A | O30: N/A | P30: N/A | Q30: N/A
L31: Oct | M31: N/A | N31: N/A | O31: N/A | P31: N/A | Q31: N/A
L32: Nov | M32: N/A | N32: N/A | O32: N/A | P32: N/A | Q32: N/A
L33: Dec | M33: N/A | N33: N/A | O33: N/A | P33: N/A | Q33: N/A
L34: Annual | M34: =AVERAGE(M22:M33) ->  | O34: =MAX(O22:O33) -> 0 | P34: =AVERAGE(P22:P33) ->  | Q34: =MAX(Q22:Q33) -> 0
K36: =+A6 -> 2020 | L36: mg/Nm3 | M36: 95%ile 10-min avg maximum | N36: Monthly CO 10-min avg mean | O36: 10-min avg maximum | P36: Monthly daily mean | Q36: Monthly daily maximum
K37: A3 | L37: Jan | M37: N/A | N37: N/A | O37: N/A | P37: N/A | Q37: N/A
L38: Feb | M38: N/A | N38: N/A | O38: N/A | P38: N/A | Q38: N/A
L39: Mar | M39: N/A | N39: N/A | O39: N/A | P39: N/A | Q39: N/A
L40: Apr | M40: N/A | N40: N/A | O40: N/A | P40: N/A | Q40: N/A
L41: May | M41: N/A | N41: N/A | O41: N/A | P41: N/A | Q41: N/A
L42: Jun | M42: N/A | N42: N/A | O42: N/A | P42: N/A | Q42: N/A
C43: 01733 465284 | L43: Jul | M43: N/A | N43: N/A | O43: N/A | P43: N/A | Q43: N/A
L44: Aug | M44: N/A | N44: N/A | O44: N/A | P44: N/A | Q44: N/A
C45: kgoldacre@viridor.co.uk | L45: Sep | M45: N/A | N45: N/A | O45: N/A | P45: N/A | Q45: N/A
L46: Oct | M46: N/A | N46: N/A | O46: N/A | P46: N/A | Q46: N/A
L47: Nov | M47: N/A | N47: N/A | O47: N/A | P47: N/A | Q47: N/A
A48: Comments : | L48: Dec | M48: N/A | N48: N/A | O48: N/A | P48: N/A | Q48: N/A
A49: Environment Agency explanatory note: The 10-minute average ELV is based on the “95th percentile”. In this case this means that 95% of the 10 minute averages in the relevant 24-hour period (i.e. 137) must be below 150 mg/Nm3, and 5% (i.e. 7) are allowed to be any value above 150 mg/Nm3. Whilst we expect operators to minimise CO emissions at all times, it is perfectly acceptable for the value of the maximum 10-minute average to be above 150 mg/Nm3, provided the 95th percentile ELV has been met for that period. | L49: Annual | M49: =AVERAGE(M37:M48) ->  | O49: =MAX(O37:O48) -> 0 | P49: =AVERAGE(P37:P48) ->  | Q49: =MAX(Q37:Q48) -> 0
K51: =+A6 -> 2020 | L51: mg/Nm3 | M51: 95%ile 10-min avg maximum | N51: Monthly CO 10-min avg mean | O51: 10-min avg maximum | P51: Monthly daily mean | Q51: Monthly daily maximum
K52: A4 | L52: Jan | M52: N/A | N52: N/A | O52: N/A | P52: N/A | Q52: N/A
L53: Feb | M53: N/A | N53: N/A | O53: N/A | P53: N/A | Q53: N/A
L54: Mar | M54: N/A | N54: N/A | O54: N/A | P54: N/A | Q54: N/A
L55: Apr | M55: N/A | N55: N/A | O55: N/A | P55: N/A | Q55: N/A
L56: May | M56: N/A | N56: N/A | O56: N/A | P56: N/A | Q56: N/A
L57: Jun | M57: N/A | N57: N/A | O57: N/A | P57: N/A | Q57: N/A
L58: Jul | M58: N/A | N58: N/A | O58: N/A | P58: N/A | Q58: N/A
L59: Aug | M59: N/A | N59: N/A | O59: N/A | P59: N/A | Q59: N/A
L60: Sep | M60: N/A | N60: N/A | O60: N/A | P60: N/A | Q60: N/A
L61: Oct | M61: N/A | N61: N/A | O61: N/A | P61: N/A | Q61: N/A
L62: Nov | M62: N/A | N62: N/A | O62: N/A | P62: N/A | Q62: N/A
L63: Dec | M63: N/A | N63: N/A | O63: N/A | P63: N/A | Q63: N/A
L64: Annual | M64: =AVERAGE(M52:M63) ->  | O64: =MAX(O52:O63) -> 0 | P64: =AVERAGE(P52:P63) ->  | Q64: =MAX(Q52:Q63) -> 0
K66: =+A6 -> 2020 | L66: mg/Nm3 | M66: 95%ile 10-min avg maximum | N66: Monthly CO 10-min avg mean | O66: 10-min avg maximum | P66: Monthly daily mean | Q66: Monthly daily maximum
K67: A5 | L67: Jan | M67: N/A | N67: N/A | O67: N/A | P67: N/A | Q67: N/A
L68: Feb | M68: N/A | N68: N/A | O68: N/A | P68: N/A | Q68: N/A
L69: Mar | M69: N/A | N69: N/A | O69: N/A | P69: N/A | Q69: N/A
L70: Apr | M70: N/A | N70: N/A | O70: N/A | P70: N/A | Q70: N/A
L71: May | M71: N/A | N71: N/A | O71: N/A | P71: N/A | Q71: N/A
L72: Jun | M72: N/A | N72: N/A | O72: N/A | P72: N/A | Q72: N/A
L73: Jul | M73: N/A | N73: N/A | O73: N/A | P73: N/A | Q73: N/A
L74: Aug | M74: N/A | N74: N/A | O74: N/A | P74: N/A | Q74: N/A
L75: Sep | M75: N/A | N75: N/A | O75: N/A | P75: N/A | Q75: N/A
L76: Oct | M76: N/A | N76: N/A | O76: N/A | P76: N/A | Q76: N/A
L77: Nov | M77: N/A | N77: N/A | O77: N/A | P77: N/A | Q77: N/A
L78: Dec | M78: N/A | N78: N/A | O78: N/A | P78: N/A | Q78: N/A
L79: Annual | M79: =AVERAGE(M67:M78) ->  | O79: =MAX(O67:O78) -> 0 | P79: =AVERAGE(P67:P78) ->  | Q79: =MAX(Q67:Q78) -> 0

Sheet NH3
A1: =+'Cover Page'!$B$29 -> Annual Performance Report 2020 | E1: =+'Cover Page'!$B$33 -> Peterborough Energy Recovery Facility
A3: Monitoring of Ammnonia emissions | D3: Whole Installation | G3: See Notes in Cell Q3 | J3: =+A3 -> Monitoring of Ammnonia emissions | N3: Per Combustion Line | Q3: Notes:
Q4: User to add logic to complete Whole installation, Table A5:G18. From the data in Per Combustion Line, Table J6:O79, subject to No. of lines installed
A5: mg/Nm3 | B5: 1/2 Hourly Reference Periods | E5: Daily Reference Periods
A6: =+'Cover Page'!C39 -> 2020 | B6: 1/2 hourly NH3 ELV | C6: Monthly 1/2 hourly mean | D6: Highest 1/2 hourly maximum | E6: Daily NH3 ELV | F6: Monthly daily mean | G6: Highest daily maximum | J6: =+A6 -> 2020 | K6: mg/Nm3 | L6: Monthly 1/2 hourly mean | M6: Monthly 1/2 hourly maximum | N6: Monthly daily mean | O6: Monthly daily maximum
A7: Jan | B7: 0 | C7: =L7 -> 0.8 | D7: =M7 -> 2.9 | E7: 0 | F7: =N7 -> 0.81 | G7: =O7 -> 1.5 | J7: A1 | K7: Jan | L7: 0.8 | M7: 2.9 | N7: 0.81 | O7: 1.5
A8: Feb | B8: =+B7 -> 0 | C8: =L8 -> 1.4 | D8: =M8 -> 6.3 | E8: =+E7 -> 0 | F8: =N8 -> 1.32 | G8: =O8 -> 2.1 | K8: Feb | L8: 1.4 | M8: 6.3 | N8: 1.32 | O8: 2.1
A9: Mar | B9: =+B8 -> 0 | C9: 0.9 | D9: 5.3 | E9: =+E8 -> 0 | F9: 0.93 | G9: 2.3 | K9: Mar | L9: 0.9 | M9: 5.3 | N9: 0.93 | O9: 2.3 | Q9: Whole Installation table A5:G18:
A10: Apr | B10: 0 | C10: 2.1 | D10: 14.3 | E10: 0 | F10: 1.98 | G10: 4.1 | K10: Apr | L10: 2.1 | M10: 14.3 | N10: 1.98 | O10: 4.1 | Q10: Mean: for 1/2 hourly and daily periods calculate mean of values across all operational combustion lines for the month
A11: May | B11: 0 | C11: 2.6 | D11: 12.3 | E11: 0 | F11: 2.65 | G11: 6 | K11: May | L11: 2.6 | M11: 12.3 | N11: 2.65 | O11: 6
A12: Jun | B12: 0 | C12: 0.9 | D12: 4.1 | E12: 0 | F12: 0.86 | G12: 1.4 | K12: Jun | L12: 0.9 | M12: 4.1 | N12: 0.86 | O12: 1.4
A13: Jul | B13: 0 | C13: 0.8 | D13: 5.3 | E13: 0 | F13: 0.78 | G13: 1.5 | K13: Jul | L13: 0.8 | M13: 5.3 | N13: 0.78 | O13: 1.5 | Q13: Maximum: for 1/2 hourly and daily periods use the highest value across all operational combustion lines for the month
A14: Aug | B14: 0 | C14: 0.5 | D14: 1.9 | E14: 0 | F14: 0.46 | G14: 0.8 | K14: Aug | L14: 0.5 | M14: 1.9 | N14: 0.46 | O14: 0.8
A15: Sep | B15: 0 | C15: 0.4 | D15: 5 | E15: 0 | F15: 0.41 | G15: 1.2 | K15: Sep | L15: 0.4 | M15: 5 | N15: 0.41 | O15: 1.2
A16: Oct | B16: 0 | C16: 0.5 | D16: 4 | E16: 0 | F16: 0.47 | G16: 1 | K16: Oct | L16: 0.5 | M16: 4 | N16: 0.47 | O16: 1
A17: Nov | B17: 0 | C17: 0.4 | D17: 2.9 | E17: 0 | F17: 0.42 | G17: 0.7 | K17: Nov | L17: 0.4 | M17: 2.9 | N17: 0.42 | O17: 0.7
A18: Dec | B18: 0 | C18: =L18 -> 0.5 | D18: =M18 -> 4.7 | E18: 0 | F18: 0.51 | G18: 1 | K18: Dec | L18: 0.5 | M18: 4.7 | N18: 0.51 | O18: 1
K19: Annual | L19: =AVERAGE(L7:L18) -> 0.9833333333 | M19: =MAX(M7:M18) -> 14.3 | N19: =AVERAGE(N7:N18) -> 0.9666666667 | O19: =MAX(O7:O18) -> 6
J21: =+A6 -> 2020 | K21: mg/Nm3 | L21: Monthly 1/2 hourly mean | M21: Monthly 1/2 hourly maximum | N21: Monthly daily mean | O21: Monthly daily maximum
J22: A2 | K22: Jan | L22: N/A | M22: N/A | N22: N/A | O22: N/A
K23: Feb | L23: N/A | M23: N/A | N23: N/A | O23: N/A
K24: Mar | L24: N/A | M24: N/A | N24: N/A | O24: N/A
K25: Apr | L25: N/A | M25: N/A | N25: N/A | O25: N/A
K26: May | L26: N/A | M26: N/A | N26: N/A | O26: N/A
K27: Jun | L27: N/A | M27: N/A | N27: N/A | O27: N/A
K28: Jul | L28: N/A | M28: N/A | N28: N/A | O28: N/A
K29: Aug | L29: N/A | M29: N/A | N29: N/A | O29: N/A
K30: Sep | L30: N/A | M30: N/A | N30: N/A | O30: N/A
K31: Oct | L31: N/A | M31: N/A | N31: N/A | O31: N/A
K32: Nov | L32: N/A | M32: N/A | N32: N/A | O32: N/A
K33: Dec | L33: N/A | M33: N/A | N33: N/A | O33: N/A
K34: Annual | L34: =AVERAGE(L22:L33) ->  | M34: =MAX(M22:M33) -> 0 | N34: =AVERAGE(N22:N33) ->  | O34: =MAX(O22:O33) -> 0
J36: =+A6 -> 2020 | K36: mg/Nm3 | L36: Monthly 1/2 hourly mean | M36: Monthly 1/2 hourly maximum | N36: Monthly daily mean | O36: Monthly daily maximum
J37: A3 | K37: Jan | L37: N/A | M37: N/A | N37: N/A | O37: N/A
K38: Feb | L38: N/A | M38: N/A | N38: N/A | O38: N/A
K39: Mar | L39: N/A | M39: N/A | N39: N/A | O39: N/A
K40: Apr | L40: N/A | M40: N/A | N40: N/A | O40: N/A
K41: May | L41: N/A | M41: N/A | N41: N/A | O41: N/A
K42: Jun | L42: N/A | M42: N/A | N42: N/A | O42: N/A
C43: 01733 465284 | K43: Jul | L43: N/A | M43: N/A | N43: N/A | O43: N/A
K44: Aug | L44: N/A | M44: N/A | N44: N/A | O44: N/A
C45: kgoldacre@viridor.co.uk | K45: Sep | L45: N/A | M45: N/A | N45: N/A | O45: N/A
K46: Oct | L46: N/A | M46: N/A | N46: N/A | O46: N/A
K47: Nov | L47: N/A | M47: N/A | N47: N/A | O47: N/A
A48: Comments : | K48: Dec | L48: N/A | M48: N/A | N48: N/A | O48: N/A
A49: An indicated ELV value of zero in the table above means that no ammonia limit is set in the permit. | K49: Annual | L49: =AVERAGE(L37:L48) ->  | M49: =MAX(M37:M48) -> 0 | N49: =AVERAGE(N37:N48) ->  | O49: =MAX(O37:O48) -> 0
J51: =+A6 -> 2020 | K51: mg/Nm3 | L51: Monthly 1/2 hourly mean | M51: Monthly 1/2 hourly maximum | N51: Monthly daily mean | O51: Monthly daily maximum
J52: A4 | K52: Jan | L52: N/A | M52: N/A | N52: N/A | O52: N/A
K53: Feb | L53: N/A | M53: N/A | N53: N/A | O53: N/A
K54: Mar | L54: N/A | M54: N/A | N54: N/A | O54: N/A
K55: Apr | L55: N/A | M55: N/A | N55: N/A | O55: N/A
K56: May | L56: N/A | M56: N/A | N56: N/A | O56: N/A
K57: Jun | L57: N/A | M57: N/A | N57: N/A | O57: N/A
K58: Jul | L58: N/A | M58: N/A | N58: N/A | O58: N/A
K59: Aug | L59: N/A | M59: N/A | N59: N/A | O59: N/A
K60: Sep | L60: N/A | M60: N/A | N60: N/A | O60: N/A
K61: Oct | L61: N/A | M61: N/A | N61: N/A | O61: N/A
K62: Nov | L62: N/A | M62: N/A | N62: N/A | O62: N/A
K63: Dec | L63: N/A | M63: N/A | N63: N/A | O63: N/A
K64: Annual | L64: =AVERAGE(L52:L63) ->  | M64: =MAX(M52:M63) -> 0 | N64: =AVERAGE(N52:N63) ->  | O64: =MAX(O52:O63) -> 0
J66: =+A6 -> 2020 | K66: mg/Nm3 | L66: Monthly 1/2 hourly mean | M66: Monthly 1/2 hourly maximum | N66: Monthly daily mean | O66: Monthly daily maximum
J67: A5 | K67: Jan | L67: N/A | M67: N/A | N67: N/A | O67: N/A
K68: Feb | L68: N/A | M68: N/A | N68: N/A | O68: N/A
K69: Mar | L69: N/A | M69: N/A | N69: N/A | O69: N/A
K70: Apr | L70: N/A | M70: N/A | N70: N/A | O70: N/A
K71: May | L71: N/A | M71: N/A | N71: N/A | O71: N/A
K72: Jun | L72: N/A | M72: N/A | N72: N/A | O72: N/A
K73: Jul | L73: N/A | M73: N/A | N73: N/A | O73: N/A
K74: Aug | L74: N/A | M74: N/A | N74: N/A | O74: N/A
K75: Sep | L75: N/A | M75: N/A | N75: N/A | O75: N/A
K76: Oct | L76: N/A | M76: N/A | N76: N/A | O76: N/A
K77: Nov | L77: N/A | M77: N/A | N77: N/A | O77: N/A
K78: Dec | L78: N/A | M78: N/A | N78: N/A | O78: N/A
K79: Annual | L79: =AVERAGE(L67:L78) ->  | M79: =MAX(M67:M78) -> 0 | N79: =AVERAGE(N67:N78) ->  | O79: =MAX(O67:O78) -> 0
